{"text_format":"1","workbook":"xlsx","n_sheets":20,"sheets":["Cover Page","Contents","Facility Info","Operational Summary","Operational Data","Perf. Form 1","Energy Form 1","Permit Compliance","Improvements","Public Liasion","Residue Quality ","Water","Air (periodic)","Air (CEMS)","HCl","SO2","NOx","TOC","Particulates","CO 95% 10 min"],"not_rendered":{"charts":6,"images":2,"macros":1,"external_links":0,"defined_names":20,"comments":0,"pivot_tables":0},"unopened":[],"bounds":{"document_bytes":16777216,"sheet_cells":100000,"rows_first":2000,"rows_last":500,"rows_between":2000,"halvings":0,"cell_chars":16384,"cell_head_chars":4096},"cells_cut":0,"cells_raw":0,"read":"whole","date_system":"1900"}

{"sheet":"Cover Page","index":0,"n_rows":54,"n_cols":14,"rows_kept":54,"cut":false,"hidden":false,"merged":[[13,13,18,15],[34,1,34,8],[0,3,5,6],[7,1,23,8],[28,1,28,8],[30,1,30,8],[32,1,32,8],[49,2,49,3],[49,6,49,8],[53,2,53,3],[36,1,36,8],[40,2,40,8],[42,2,42,4],[46,2,46,4],[44,2,44,5],[46,6,47,8]]}
[null,null,null,"Add company logo"]
[null,null,null,null,null,null,null,null,null,null,null,null,null,"Version 20.1 "]
[]
[]
[]
[]
[]
[]
[]
[]
[]
[]
[null,null,null,null,null,null,null,null,null,null,null,null,null,"Notes:"]
[null,null,null,null,null,null,null,null,null,null,null,null,null,"This template may require adjustments by individual operators to meet specific reporting requirements as defined in the site Permit(s)"]
[]
[]
[]
[]
[]
[]
[]
[]
[]
[]
[]
[]
[]
[]
[null,"Annual Performance Report 2021"]
[]
[null,"Permit EPR/WP3239SJ"]
[]
[null,"Tyseley Energy from Waste Plant"]
[]
[]
[]
[null,"Veolia ES Birmingham Limited"]
[]
[null,"Year:",2021]
[]
[null,"Address:","James Road, Tyseley, Birmingham, B11 2BA"]
[]
[null,"Tel: ","0203 567 3742"]
[]
[null,"Email: ","christine.skaramaga@veolia.com"]
[]
[null,"Prepared by:","Christine Skaramaga",null,null,"Position:","Midlands Region Environmental Engineer"]
[]
[]
[null,"Approved by:","Mark Gilsenan",null,null,"Position:","Plant Manager"]
[]
[null,"Version:",1]
[]
[null,"Issue Date:","2022-01-28"]

{"sheet":"Contents","index":1,"n_rows":43,"n_cols":11,"rows_kept":43,"cut":false,"hidden":false,"merged":[[4,10,7,14],[8,1,8,6],[3,1,3,6],[4,1,4,6],[5,1,5,6],[6,1,6,6],[7,1,7,6],[20,1,20,6],[9,1,9,6],[10,1,10,6],[11,1,11,6],[12,1,12,6],[13,1,13,6],[14,1,14,6],[15,1,15,6],[16,1,16,6],[17,1,17,6],[18,1,18,6],[19,1,19,6],[34,1,34,6],[21,1,21,6],[22,1,22,6],[25,1,25,6],[26,1,26,6],[27,1,27,6],[28,1,28,6],[29,1,29,6],[30,1,30,6],[33,1,33,6],[42,0,45,9],[35,1,35,6],[36,1,36,6],[37,1,37,6],[38,1,38,6],[39,1,39,6],[40,1,40,6]]}
[{"$f":"+'Cover Page'!$B$29","v":"Annual Performance Report 2021"},null,null,null,{"$f":"+'Cover Page'!$B$33","v":"Tyseley Energy from Waste Plant"}]
[]
["Contents",null,null,null,null,null,null,null,null,null,"Notes:"]
["Section","Subject",null,null,null,null,null,"Page ",null,null,"Section references and Page nos. to be inserted"]
[null,"Facility Information",null,null,null,null,null,3,null,null,"Sections and Subjects may require adjustment by individual operators to meet specific reporting requirements as defined in the sites Permit(s)"]
[null,"Operational Summary",null,null,null,null,null,4]
[null,"Operational Data",null,null,null,null,null,5]
[null,"Performance Form 1",null,null,null,null,null,6]
[null,"Energy Form 1",null,null,null,null,null,7]
[null,"Permit Compliance",null,null,null,null,null,8]
[null,"Improvements",null,null,null,null,null,9]
[null,"Public Liaison",null,null,null,null,null,10]
[null,"Residue Quality - Optional",null,null,null,null,null,11]
[null,"Emissions to Water",null,null,null,null,null,12]
[null,"Emissions to Air (periodically monitored)",null,null,null,null,null,13]
[null,"Emissions to Air (continuously monitored)",null,null,null,null,null,14]
[null,"Hydrogen Chloride emissions",null,null,null,null,null,15]
[null,"Sulphur Dioxide emissions",null,null,null,null,null,16]
[null,"Oxides of Nitrogen emissions",null,null,null,null,null,17]
[null,"Total Organic Carbon emissions",null,null,null,null,null,18]
[null,"Particulate Matter emissions",null,null,null,null,null,19]
[null,"Carbon Monoxide emissions",null,null,null,null,null,20]
[]
[]
["Version Control"]
["Section","Information",null,null,null,null,null,"Date"]
[]
[]
[]
[]
[]
[]
["Distribution"]
["Copy","Name, Role",null,null,null,null,null,"No."]
[1,"Sarah Dennis, EA Installations Technical Leader",null,null,null,null,null,1]
[]
[]
[]
[]
[]
[]
[]
["This report is required under the Industrial Emissions Directive’s Article 55(2) requirements on reporting and public information on waste incineration plants and co-incineration plants, which require the operator to produce an annual report on the functioning and monitoring of the plant and make it available to the public. "]

{"sheet":"Facility Info","index":2,"n_rows":22,"n_cols":11,"rows_kept":22,"cut":false,"hidden":false,"merged":[[4,0,17,8],[21,0,53,8],[4,10,13,13],[21,10,30,13]]}
[{"$f":"+'Cover Page'!$B$29","v":"Annual Performance Report 2021"},null,null,null,{"$f":"+'Cover Page'!$B$33","v":"Tyseley Energy from Waste Plant"}]
[]
["Plant Description and Design",null,null,null,null,null,null,null,null,null,"Notes:"]
[]
["The main purpose of the activity carried out at this facility is to incinerate, primarily, Municipal Solid Waste (MSW) as defined by EWC 20 03 01, recovering energy in the form of steam and electricity generating 27 MW for export to the National Grid. \n\nThe permit covers the site and the entire incineration process which includes all incineration lines, waste reception and storage, waste-fuel and air supply systems, boilers, facilities for the treatment of exhaust gases, on-site facilities for handling and storage of residues and operations, recording and monitoring conditions.\n",null,null,null,null,null,null,null,null,null,"Include summary of plant design, design capacity, no. of combustion lines, electrical and heat capacity and any other general information that describes the facility, its location and purpose "]
[]
[]
[]
[]
[]
[]
[]
[]
[]
[]
[]
[]
[]
[]
["Summary of Operational Processes and Procedures"]
[]
["This facility consists of two incineration lines, each capable of processing approximately 23.5 tonnes per hour, which takes approximately 350,000 tonnes of Birmingham’s waste each year but this, is dependent on two factors: actual operating hours and calorific value of the waste being burnt.\n\nThe third incineration line processes clinical waste and other designated hazardous wastes (CWI) at a nominal rate of 600kg/hour.\nAll emissions to air from the two 80m high chimneys are controlled to meet the emission limits included in the Environmental Permit. the flue gases released into the atmosphere are continuously monitored for Particulate Matter (total), TOC, Hydrogen Chloride, Oxides of Nitrogen, Carbon Monoxide, Ammonia and Sulphur Dioxide.          \nBi-annual check monitoring of this equipment is carried out by approved contractors using indepent extractive sampling methods, at which time emissions of Metals, Dioxins and other substances are also monitored.\nThe Continious Emissions Monitoring equipment (CEMs) was in service during 2020 for 100% of the plant operating time. This equipment is stringently monitored with routine calibration checks and is standardised to BS EN14181:2004. \nHalf hourly (10 minute for CO) and daily average emission data for continuously monitored emissions is supplied to the Environment Agency on a monthly basis.",null,null,null,null,null,null,null,null,null,"Include summary of key processes and procedures such as (but not limited to); waste reception, control rooms, grate, bed and boiler, energy & heat  generation, cooling systems, residue management, emission controls, health and safety systems, maintenance"]

{"sheet":"Operational Summary","index":3,"n_rows":31,"n_cols":11,"rows_kept":31,"cut":false,"hidden":false,"merged":[[4,0,26,8],[30,0,51,8],[4,10,13,13],[30,10,39,13]]}
[{"$f":"+'Cover Page'!$B$29","v":"Annual Performance Report 2021"},null,null,null,{"$f":"+'Cover Page'!$B$33","v":"Tyseley Energy from Waste Plant"}]
[]
["Summary of Plant Operations and Maintenance during the reporting year",null,null,null,null,null,null,null,null,null,"Notes:"]
[]
["Common outage\nNDT inspections\nFurnace tube & membrane repairs\nSuperheated tube replacements\nSuperheated bottom header replacement\nDrum and superheater safety valve replacement\nMain stop and bypass, electric stop and non return valve refurbishment\nRefractory repairs to furnace\nInconel repairs/overlay to furnace sidewalls and motor\nAsh discharger replacement (boiler 1)\nGrate overhaul to all undercarriages and grate replacements\nID and FD fan drives service\nInspection hatches replacement\nID fan allignment, bearing and internal inspection\nStack liner internal inspection and internal strengthening with additional support internal plating\nCalibration of site instruments\nPrimary air fan and motor replacement\nDA valve replacement\nClinical boiler control valves replaced\nTurbine exhaust and steam end bearing replacement\nCSEVs replaced\nGenerator minor overhaul\nGenerator heat exchangers removed for pressure test and clean\nVibration equipment upgraded\nCR refurbishement\nDCS/SCADA control system upgrade\nTransformer service and tap changer maintenance\nTurbine and compressor MCC serviced\n11kV board and switchgear inspection\nClinical boiler clean\nPrimary and secondary combustion chamber repairs",null,null,null,null,null,null,null,null,null,"Include summary of key operational and/or maintenance activity undertaken in the year, such as any major component upgrades and/or replacements "]
[]
[]
[]
[]
[]
[]
[]
[]
[]
[]
[]
[]
[]
[]
[]
[]
[]
[]
[]
[]
[]
[]
[]
["Summary of Residue Handling for the reporting year"]
[]
["Ash residues (known as Incinerator Bottom Ash or IBA) are currently sent to Castle Bromwich for reprocessing. This material is reprocessed by extracting further ferrous and non-ferrous metals and by crushing, trommelling and screening to produce a graded, quality material that is useable as substitute aggregate in such applications as road building.\nFerrous metal removed from the IBA is sent to a steel manufacturer for recycling.\nFiner particulate matter, know as Air Pollution Control (APC) residues, removed from the flue gases by fabric filter is collected and sent to the Minosus Hazardous Waste underground storage facility in Cheshire or to Empire Works, a Veolia facility, for treatment.",null,null,null,null,null,null,null,null,null,"Include in here a summary of residue handling regimes and destinations "]

{"sheet":"Operational Data","index":4,"n_rows":65,"n_cols":11,"rows_kept":65,"cut":false,"hidden":false,"merged":[[3,1,3,2],[7,1,19,1],[23,1,26,1],[28,1,29,1],[52,0,53,0],[5,10,6,10],[7,10,18,10],[33,1,38,1],[30,2,30,5],[30,6,30,7]]}
[{"$f":"+'Cover Page'!$B$29","v":"Annual Performance Report 2021"},null,null,null,{"$f":"+'Cover Page'!$B$33","v":"Tyseley Energy from Waste Plant"}]
[]
["Operational Data",null,null,null,null,null,null,null,null,null,"Notes:"]
["Plant Size",440500,null,"tonnes pa",null,"MWth",null,"MWe",null,null,"* - RDF to include SRF "]
["No. of combustion lines",2,null,"No. of Turbines:",null,1,null,null,null,null,"** - CHP plants only"]
[null,null,null,null,null,null,null,null,null,null,"2020 updates include;  heat in MWh, water in Litres, NCV in MJ/kg"]
["Waste types received","Unit","Q1","Q2","Q3","Q4","Year Total","%"]
["Household / Local Authority","tonnes",93258.72,85152.98,96478.96,96513,{"$f":"SUM(C8:F8)","v":371403.66000000003},{"$f":"IF(G8>0,G8/$G$18,\"-\")","v":0.98008646742162531},null,null,"Availabiity Definition: 'the availability of a line is to be calculated by the number of hours the line reported Continuously Monitored emission levels to the Regulator through the calendar year divided by the total number of hours in that year. \nThe overall plant availability is calculated as the Mean of all lines in the plant. For clarity this includes periods of Other Than Normal Operating Conditions (OTNOC) and abnormal operation.'  \n\nRationale: The primary function of an Energy from Waste facility is the disposal of waste. It follows therefore that the availability of a plant is determined by the period of time a facility spends undertaking this activity."]
["Commercial & Industrial ",null,937.1,263,55.963000000000001,890,{"$f":"SUM(C9:F9)","v":2146.0630000000001},5.6631841068401304E-3]
["Hazardous ",null,877.3,1061.27,947.10299999999995,896.3,3781.973,9.9801400919257675E-3]
["Clinical",null,356.67,360.8,441.82499999999999,458.9,1618.1950000000002,4.2702083796086901E-3]
["Waste wood (biomass) ",null,null,null,null,null,0,"-"]
["Refuse Derived Fuel * - H'hold/LA",null,null,null,null,null,{"$f":"SUM(C13:F13)","v":0},"-"]
["Refuse Derived Fuel *  - C&I",null,null,null,null,null,0,"-"]
["Other [Please specify]",null,null,null,null,null,0,"-"]
["Other [Please specify]"]
["Other [Please specify]"]
["Total waste received",null,{"$f":"SUM(C8:C17)","v":95429.790000000008},{"$f":"SUM(D8:D17)","v":86838.05},{"$f":"SUM(E8:E17)","v":97923.85100000001},{"$f":"SUM(F8:F17)","v":98758.2},{"$f":"SUM(G8:G17)","v":378949.89100000006},{"$f":"IF(G18>0,G18/$G$18,\"-\")","v":1}]
["Rejected Waste ",null,null,null,null,null,{"$f":"SUM(C19:F19)","v":0},{"$f":"IF(G19>0,G19/$G$18,\"-\")","v":"-"}]
["Unprocessed waste transferred out",null,null,null,null,null,{"$f":"SUM(C20:F20)","v":0},{"$f":"IF(G20>0,G20/$G$18,\"-\")","v":"-"}]
["Total waste combusted",null,92521,80313,101734,100865,{"$f":"SUM(C21:F21)","v":375433},{"$f":"IF(G21>0,G21/$G$18,\"-\")","v":0.99071937719596792}]
[]
["Energy Usage / Export","Unit","Q1","Q2","Q3","Q4","Year Total","KWh/te"]
["Power Generated","MWh",53005,43627,57078,56956,{"$f":"SUM(C24:F24)","v":210666},{"$f":"IF(G24>0,G24*1000/$G$21,\"-\")","v":561.12808410555283}]
["Power Exported",null,46230,38586,49847,49493,{"$f":"SUM(C25:F25)","v":184156},{"$f":"IF(G25>0,G25*1000/$G$21,\"-\")","v":490.51628386423141}]
["Power Used on site",null,{"$f":"(C24+C27)-C25","v":6925.3000000000029},{"$f":"(D24+D27)-D25","v":5591.9000000000015},7231,7480,{"$f":"SUM(C26:F26)","v":27228.200000000004},{"$f":"IF(G26>0,G26*1000/$G$21,\"-\")","v":72.524791374226567}]
["Power Imported",null,150.30000000000001,550.9,0,17,718.2,{"$f":"IF(G27>0,G27*1000/$G$21,\"-\")","v":1.9129911329052054}]
["Parasitic Load","%",{"$f":"IF(C24>0,1-C25/(C24+C27),\"-\")","v":0.13028428021288574},{"$f":"IF(D24>0,1-D25/(D24+D27),\"-\")","v":0.12657686309217964},{"$f":"IF(E24>0,1-E25/(E24+E27),\"-\")","v":0.12668628893794454},{"$f":"IF(F24>0,1-F25/(F24+F27),\"-\")","v":0.13129026029873803},{"$f":"IF(G24>0,1-G25/(G24+G27),\"-\")","v":0.12880905952289723}]
["Thermal Energy Produced **","MWh",null,null,null,null,{"$f":"SUM(C29:F29)","v":0},{"$f":"IF(G29>0,G29*1000/$G$21,\"-\")","v":"-"}]
["Thermal Energy Exported **",null,null,null,null,null,0,{"$f":"IF(G30>0,G30*1000/$G$21,\"-\")","v":"-"}]
["R1 value",null,0.62,null,null,null,"Operational"]
[]
["Waste Disposal & Recovery","Unit","Q1","Q2","Q3","Q4","Year Total","% inputs"]
["APC Residues - produced","tonnes",2140.1000000000004,1797.62,2220.2399999999998,2354.84,{"$f":"SUM(C34:F34)","v":8512.7999999999993},{"$f":"IF(G34>0,G34/$G$21,\"-\")","v":2.2674618373984171E-2}]
["IBA - produced",null,19526.999999999996,17040.187999999998,21208.240000000002,20251.900000000001,78027.328000000009,0.20783289694832369]
["Metals recycling",null,1224.9200000000003,1106.58,1530.41,1165.3,{"$f":"SUM(C36:F36)","v":5027.21},1.3390431848026145E-2]
["Interceptor waste",null,0,93.94,0,0,{"$f":"SUM(C37:F37)","v":93.94},2.5021774857298106E-4]
["Wooden packaging",null,0,43.02,55.26,31.86,130.13999999999999,3.4663974663921387E-4]
["Slag",null,0,183.32,0,0,183.32,4.8828952169894494E-4]
[]
["Raw Material Usage","Unit","Q1","Q2","Q3","Q4","Year Total","kg or Ltr /te"]
["Mains Water","m3",40713,36179,41667,41513,{"$f":"SUM(C42:F42)","v":160072},{"$f":"IF(G42>0,G42*1000/$G$21,\"-\")","v":426.36635564801179}]
["Other Water","m3",696,0,1874,449,3019,{"$f":"IF(G43>0,G43*1000/$G$21,\"-\")","v":8.0413815514352756}]
["Ammonia","kgs",78600,73400,100900,96700,349600,{"$f":"IF(G44>0,G44/$G$21,\"-\")","v":0.93119145093798361}]
["Urea","kgs",null,null,null,null,{"$f":"SUM(C45:F45)","v":0},"-"]
["Activated Carbon","kgs",25000,27900,35800,32100,120800,0.32176180570168311]
["Lime / hydrated lime","kgs",502000,479000,592000,576000,2149000,5.7240572885175247]
["Fuel oil","ltrs",432593,288809,226125,289823,1237350,3.2957944560014703]
["Gas","cf",null,null,null,null,0]
["Other",null,0,0,0,0,0]
[]
["Summary ","Line/Unit","Q1","Q2","Q3","Q4","Year Total",null,null,"Hrs in year "]
["Availability of waste combustion by line, hrs",1,2053,1628,2124,2110,{"$f":"SUM(C53:F53)","v":7915},{"$f":"G53/J53","v":0.90353881278538817},null,8760]
[null,2,1939,1762,2203,2185,{"$f":"SUM(C54:F54)","v":8089},{"$f":"G54/$J$53","v":0.92340182648401825}]
[null,3,null,null,null,null,0,{"$f":"G55/$J$53","v":0}]
[null,4,null,null,null,null,0,0]
[null,5,null,null,null,null,{"$f":"SUM(C57:F57)","v":0},0]
["Overall Availability, mean avg. of all lines, hrs",null,{"$f":"AVERAGE(C53:C54)","v":1996},{"$f":"AVERAGE(D53:D54)","v":1695},{"$f":"AVERAGE(E53:E54)","v":2163.5},{"$f":"AVERAGE(F53:F54)","v":2147.5},{"$f":"AVERAGE(G53:G54)","v":8002},{"$f":"G58/$J$53","v":0.91347031963470315}]
["Hours of turbine operations, hrs",1,2087,1865,2208,2203,{"$f":"SUM(C59:F59)","v":8363},0.95468036529680367]
["Hours of turbine operations, hrs",2,null,null,null,null,0,"x %"]
["Hours of heat / steam export",null,null,null,null,null,0,{"$f":"IF(B61>0,G60/J53,\"n/a\")","v":"n/a"}]
["Net Calorific Value of waste","MJ/kg",null,null,null,null,null,"-"]
["Abnormal Events","qty.",null,null,null,null,0,{"$f":"IF(G63>0,\"yes\",\"no\")","v":"no"}]
["Abnormal operation","hours",null,null,null,null,{"$f":"SUM(C64:F64)","v":0},{"$f":"+(G64)/J53","v":0}]
["Permit Breaches","qty.",null,null,null,null,0,{"$f":"IF(G65>0,\"yes\",\"no\")","v":"no"}]

{"sheet":"Perf. Form 1","index":5,"n_rows":54,"n_cols":10,"rows_kept":54,"cut":false,"hidden":false,"merged":[[9,0,9,9],[10,0,10,1],[10,2,10,3],[10,4,10,5],[10,6,10,7],[10,8,10,9],[2,0,2,4],[3,1,3,4],[5,3,5,4],[5,6,5,7],[8,0,8,1],[8,2,8,3],[8,4,8,5],[8,6,8,7],[8,8,8,9],[11,0,11,1],[11,2,11,3],[11,4,11,5],[11,6,11,7],[11,8,11,9],[12,0,12,1],[12,2,12,3],[12,4,12,5],[12,6,12,7],[12,8,12,9],[15,0,15,1],[15,2,15,3],[15,4,15,5],[15,6,15,7],[15,8,15,9],[16,0,16,9],[13,0,13,1],[13,2,13,3],[13,4,13,5],[13,6,13,7],[13,8,13,9],[14,0,14,3],[14,4,14,5],[14,6,14,7],[14,8,14,9],[17,0,17,1],[17,2,17,3],[17,4,17,5],[17,6,17,7],[17,8,17,9],[18,0,18,1],[18,2,18,3],[18,4,18,5],[18,6,18,7],[18,8,18,9],[19,0,19,1],[19,2,19,3],[19,4,19,5],[19,6,19,7],[19,8,19,9],[20,0,20,1],[20,2,20,3],[20,4,20,5],[20,6,20,7],[20,8,20,9],[21,0,21,1],[21,2,21,3],[21,4,21,5],[21,6,21,7],[21,8,21,9],[22,0,22,3],[22,4,22,5],[22,6,22,7],[22,8,22,9],[31,0,31,3],[31,7,31,8],[32,0,32,3],[32,4,32,5],[32,7,32,8],[33,0,33,3],[33,4,33,5],[33,7,33,8],[23,0,23,3],[23,4,23,5],[23,6,23,7],[23,8,23,9],[25,0,25,9],[26,0,28,9],[36,0,36,3],[36,4,36,5],[36,7,36,8],[37,0,37,3],[37,4,37,5],[37,7,37,8],[34,0,34,3],[34,4,34,5],[34,7,34,8],[35,0,35,3],[35,4,35,5],[35,7,35,8],[53,7,53,8],[47,0,47,1],[49,0,49,9],[50,0,51,9],[38,0,38,9],[39,0,40,9],[43,0,43,1],[43,2,43,9],[45,0,45,1],[46,0,46,1]]}
[{"$f":"+'Cover Page'!C39","v":2021}," Annual Reporting Performance Form 1"]
[]
[{"$f":"+'Cover Page'!B31","v":"Permit EPR/WP3239SJ"},null,null,null,null,"Operator: ","Veolia ES Birmingham Limited "]
["Facility:",{"$f":"+'Cover Page'!B33:I33","v":"Tyseley Energy from Waste Plant"},null,null,null,"Form:","Performance 1"]
[]
["Reporting  Period from: ",null,null,"2021-01-01",null,"to:","2021-12-31"]
[]
[{"$f":"+A1","v":2021},"Annual Reporting of Waste Disposal and Recovery"]
["Waste Description",null,"Disposal Route(s)",null,"Disposal Tonnes",null,"Recovery Tonnes",null,"% / tonne of waste incinerated"]
["1) Hazardous Wastes"]
["APC Residues",null,"D05 / D09",null,{"$f":"'Operational Data'!G34","v":8512.7999999999993},null,null,null,{"$f":"IF((E11+G11)>0,(E11+G11)/'Operational Data'!$G$21, \"-\")","v":2.2674618373984171E-2}]
["IBA",null,null,null,null,null,null,null,{"$f":"IF((E12+G12)>0,(E12+G12)/'Operational Data'!$G$21, \"-\")","v":"-"}]
["Interceptor waste",null,"D09",null,{"$f":"'Operational Data'!G37","v":93.94},null,null,null,{"$f":"IF((E13+G13)>0,(E13+G13)/'Operational Data'!$G$21, \"-\")","v":2.5021774857298106E-4}]
["Slag",null,"D10",null,{"$f":"'Operational Data'!G39","v":183.32},null,null,null,{"$f":"IF((E14+G14)>0,(E14+G14)/'Operational Data'!$G$21, \"-\")","v":4.8828952169894494E-4}]
["Total Hazardous Waste",null,null,null,{"$f":"SUM(E11:F14)","v":8790.06},null,{"$f":"SUM(G11:H14)","v":0},null,{"$f":"IF((E15+G15)>0,(E15+G15)/'Operational Data'!$G$21, \"-\")","v":2.3413125644256096E-2}]
[]
["2) Non-Hazardous Wastes"]
["IBA",null,"R11",null,null,null,{"$f":"'Operational Data'!G35","v":78027.328000000009},null,{"$f":"IF((E18+G18)>0,(E18+G18)/'Operational Data'!$G$21, \"-\")","v":0.20783289694832369}]
["Ferrous Metal",null,"R04",null,null,null,{"$f":"'Operational Data'!G36","v":5027.21},null,{"$f":"IF((E19+G19)>0,(E19+G19)/'Operational Data'!$G$21, \"-\")","v":1.3390431848026145E-2}]
["Wooden packaging",null,"R03/R05",null,null,null,{"$f":"'Operational Data'!G38","v":130.13999999999999},null,{"$f":"IF((E20+G20)>0,(E20+G20)/'Operational Data'!$G$21, \"-\")","v":3.4663974663921387E-4}]
[null,null,null,null,null,null,null,null,{"$f":"IF((E21+G21)>0,(E21+G21)/'Operational Data'!$G$21, \"-\")","v":"-"}]
[null,null,null,null,null,null,null,null,{"$f":"IF((E22+G22)>0,(E22+G22)/'Operational Data'!$G$21, \"-\")","v":"-"}]
["Total Non-Hazardous Waste",null,null,null,{"$f":"SUM(E18:F22)","v":0},null,{"$f":"SUM(G18:H22)","v":83184.678000000014},null,{"$f":"IF((E23+G23)>0,(E23+G23)/'Operational Data'!$G$21, \"-\")","v":0.22156996854298908}]
["TOTAL WASTE",null,null,null,{"$f":"+E23+E15","v":8790.06},null,{"$f":"+G23+G15","v":83184.678000000014},null,{"$f":"IF((E24+G24)>0,(E24+G24)/'Operational Data'!$G$21, \"-\")","v":0.24498309418724515}]
[]
["Operator’s comments :"]
[]
[]
[]
[]
[{"$f":"+A1","v":2021},"Annual Reporting of Water and Other Raw Material Usage"]
["Raw Material",null,null,null,"Usage",null,"Unit","Specific Usage",null,"Unit"]
["Mains Water",null,null,null,{"$f":"+'Operational Data'!G42","v":160072},null,"m3",{"$f":"IF(E33>0,E33/'Operational Data'!$G$21,\"-\")","v":0.42636635564801179},null,"m3/te"]
["Total Water",null,null,null,{"$f":"+'Operational Data'!G43+'Operational Data'!G42","v":163091},null,"m3",{"$f":"IF(E34>0,E34/'Operational Data'!$G$21,\"-\")","v":0.43440773719944703},null,"m3/te"]
["Ammonia",null,null,null,{"$f":"+'Operational Data'!G44","v":349600},null,"kg",{"$f":"IF(E35>0,E35/'Operational Data'!$G$21,\"-\")","v":0.93119145093798361},null,"kg/te"]
["Activated Carbon",null,null,null,{"$f":"+'Operational Data'!G46","v":120800},null,"kg",{"$f":"IF(E36>0,E36/'Operational Data'!$G$21,\"-\")","v":0.32176180570168311},null,"kg/te"]
["Lime / hydrated lime",null,null,null,{"$f":"+'Operational Data'!G47","v":2149000},null,"kg",{"$f":"IF(E37>0,E37/'Operational Data'!$G$21,\"-\")","v":5.7240572885175247},null,"kg/te"]
[]
["Operator’s comments :"]
[]
[]
[]
[{"$f":"+A31","v":2021},"Annual Reporting of other performance indicators "]
["Parameter",null,"Results by Line"]
[null,null,"A1","A2","A3","A4","A5",null,"Turbine 1","Turbine 2"]
["Operating hours for the year, hours",null,{"$f":"'Operational Data'!G53","v":7915},{"$f":"'Operational Data'!G54","v":8089},null,null,null,null,{"$f":"'Operational Data'!G59","v":8363}]
["Number of periods of abnormal operation, qty."]
["Cumulative hours of abnormal operation for this year, hours"]
[]
["Operator’s comments :"]
[]
[]
[]
["Signed: ","Mark Gilsenan",null,null,null,null,"Date:","2022-01-28"]

{"sheet":"Energy Form 1","index":6,"n_rows":29,"n_cols":8,"rows_kept":29,"cut":false,"hidden":false,"merged":[[4,1,4,4],[6,3,6,4],[6,6,6,7],[8,0,8,2],[8,3,8,4],[8,6,8,8],[9,0,9,2],[9,3,9,4],[9,6,9,8],[10,0,10,2],[10,3,10,4],[10,6,10,8],[11,0,11,2],[11,3,11,4],[11,6,11,8],[12,0,12,2],[12,3,12,4],[12,6,12,8],[13,0,13,2],[13,3,13,4],[13,6,13,8],[14,0,14,2],[14,3,14,4],[14,6,14,8],[28,7,28,8],[15,0,15,2],[15,3,15,4],[15,6,15,8],[17,0,17,8],[18,0,24,8]]}
[{"$f":"+'Cover Page'!C39","v":2021}," Annual Reporting of Energy Usage/Export"]
[]
[{"$f":"+'Cover Page'!B31","v":"Permit EPR/WP3239SJ"},null,null,null,null,"Operator: ","Veolia ES Birmingham Limited "]
[]
["Facility:",{"$f":"+'Cover Page'!B33:I33","v":"Tyseley Energy from Waste Plant"},null,null,null,"Form:","Energy 1"]
[]
["Reporting  Period from: ",null,null,{"$f":"+'Perf. Form 1'!D6:E6","v":"2021-01-01"},null,"to:",{"$f":"+'Perf. Form 1'!G6:H6","v":"2021-12-31"}]
[]
["Energy Source",null,null,"Energy Usage",null,"Unit","Specific Usage (KWh/tonne incinerated"]
["Electricity Produced",null,null,{"$f":"+'Operational Data'!G24","v":210666},null,"MWh",{"$f":"+'Operational Data'!H24","v":561.12808410555283}]
["Electricity Imported   ",null,null,{"$f":"+'Operational Data'!G27","v":718.2},null,"MWh",{"$f":"+'Operational Data'!H27","v":1.9129911329052054}]
["Electricity Exported",null,null,{"$f":"+'Operational Data'!G25","v":184156},null,"MWh",{"$f":"+'Operational Data'!H25","v":490.51628386423141}]
["Gas Oil",null,null,{"$f":"'Operational Data'!G48","v":1237350},null,"ltrs",{"$f":"'Operational Data'!H48","v":3.2957944560014703}]
["Steam/hot water exported",null,null,{"$f":"+'Operational Data'!G30","v":0},null,"GWh",{"$f":"+'Operational Data'!H30","v":"-"}]
[]
[]
[]
["Operator’s comments :"]
[]
[]
[]
[]
[]
[]
[]
[]
[]
[]
["Signed: ","Mark Gilsenan",null,null,null,null,"Date:","2022-01-28"]

{"sheet":"Permit Compliance","index":7,"n_rows":29,"n_cols":12,"rows_kept":29,"cut":false,"hidden":false,"merged":[[8,11,16,14],[28,4,28,8],[9,0,9,1],[9,2,9,4],[9,5,9,8],[10,0,10,1],[10,2,10,4],[10,5,10,8],[11,0,11,1],[11,2,11,4],[11,5,11,8],[12,0,12,1],[12,2,12,4],[12,5,12,8],[13,0,13,1],[13,2,13,4],[7,0,7,1],[7,2,7,8],[8,0,8,1],[8,2,8,4],[8,5,8,8],[19,7,19,9],[15,2,15,4],[15,5,15,8],[13,5,13,8],[14,0,14,1],[14,2,14,4],[14,5,14,8],[15,0,15,1],[27,1,27,3],[27,4,27,6],[27,7,27,9],[24,1,24,3],[24,4,24,6],[24,7,24,9],[25,1,25,3],[25,4,25,6],[25,7,25,9],[21,0,21,10],[17,0,17,10],[26,1,26,3],[26,4,26,6],[26,7,26,9],[22,1,22,3],[22,4,22,6],[22,7,22,9],[23,1,23,3],[23,4,23,6],[23,7,23,9],[18,1,18,3],[18,4,18,6],[18,7,18,9],[19,1,19,3],[19,4,19,6]]}
[{"$f":"+'Cover Page'!$B$29","v":"Annual Performance Report 2021"},null,null,null,{"$f":"+'Cover Page'!$B$33","v":"Tyseley Energy from Waste Plant"}]
[]
["Summary of Permit Compliance"]
[]
["Compliance with permit limits for continuously monitored pollutants"]
[]
["The plant met its emission limits as shown in the table below:"]
["Substance",null,"Percentage time compliant during operation",null,null,null,null,null,null,null,null,"Notes:"]
[null,null,"Half-hourly limit",null,null,"Daily limit",null,null,null,null,null,"Report to 2 decimal places, i.e. xx.xx%\n\nPlease provide a brief summary of each notification or non-compliance in the table (rather than just referring to notifications that were sent to the Regulator).  \n\n"]
["Particulates",null,1,null,null,1]
["Oxides of nitrogen",null,1,null,null,1]
["Sulphur dioxide",null,1,null,null,1]
["Carbon monoxide",null,"100% of 95% of 10-min averages",null,null,1]
["Total organic carbon",null,1,null,null,1]
["Hydrogen chloride",null,1,null,null,1]
["Hydrogen fluoride",null,1,null,null,1]
[]
["Summary of any notifications or non-compliances under the permit"]
["Date","Summary of notification or non-compliance [including Line/Reference]",null,null,"Reason ",null,null,"Measures taken to prevent reoccurrence"]
[]
[]
["Summary of any complaints received and actions to taken to resolve them."]
["Date","Summary of complaint [including Line/Reference]",null,null,"Reason *",null,null,"Measures taken to prevent reoccurrence"]
[]
[]
[]
[]
[]
[null,null,null,null,"* including whether substantiated by the operator or the EA"]

{"sheet":"Improvements","index":8,"n_rows":39,"n_cols":5,"rows_kept":39,"cut":false,"hidden":false,"merged":[[37,0,37,9],[38,0,47,9],[4,0,4,9],[5,0,13,9],[15,0,15,9],[16,0,24,9],[26,0,26,9],[27,0,35,9]]}
[{"$f":"+'Cover Page'!$B$29","v":"Annual Performance Report 2021"},null,null,null,{"$f":"+'Cover Page'!$B$33","v":"Tyseley Energy from Waste Plant"}]
[]
["Summary of Plant Improvements"]
[]
["Summary of any efficiency improvements that have been completed within the year."]
["n/a"]
[]
[]
[]
[]
[]
[]
[]
[]
[]
["Summary of any permit improvement conditions that have been completed within the year and the resulting environmental benefits."]
["n/a"]
[]
[]
[]
[]
[]
[]
[]
[]
[]
["Summary of any changes to the plant or operating techniques which required a variation to the permit and a summary of the resulting environmental impact."]
["n/a"]
[]
[]
[]
[]
[]
[]
[]
[]
[]
["Summary of any other improvements made to the plant or planned to be made and a summary of the resulting environmental benefits."]
["n/a"]

{"sheet":"Public Liasion","index":9,"n_rows":29,"n_cols":5,"rows_kept":29,"cut":false,"hidden":false,"merged":[[16,0,16,1],[16,2,16,9],[5,0,5,1],[5,2,5,9],[6,0,7,1],[6,2,7,9],[8,0,9,1],[8,2,9,9],[10,0,11,1],[10,2,11,9],[12,0,13,1],[12,2,13,9],[15,0,15,9],[17,0,18,1],[17,2,18,9],[19,0,20,1],[19,2,20,9],[21,0,22,1],[21,2,22,9],[23,0,24,1],[23,2,24,9],[25,0,26,1],[25,2,26,9],[28,0,28,9]]}
[{"$f":"+'Cover Page'!$B$29","v":"Annual Performance Report 2021"},null,null,null,{"$f":"+'Cover Page'!$B$33","v":"Tyseley Energy from Waste Plant"}]
[]
["Details of Public & Stakeholder Liaison"]
[]
["Summary of events held during the reporting year."]
["Date",null,"Description"]
["Bi-monthly",null,"Meetings with Birmingham City Council (remotely due to COVID-19)"]
[]
[]
[]
[]
[]
[]
[]
[]
["List of events planned for next year"]
["Date",null,"Description"]
["Bi-monthly",null,"Meetings with Birmingham City Council (remotely due to COVID-19)"]
[]
[]
[]
[]
[]
[]
[]
[]
[]
[]
["If you wish to be involved in the public liaison programme, please contact 0203 567 3751"]

{"sheet":"Residue Quality ","index":10,"n_rows":36,"n_cols":9,"rows_kept":36,"cut":false,"hidden":false,"merged":[[16,0,17,1],[16,2,17,8],[18,0,19,1],[18,2,19,8],[12,0,12,8],[13,0,13,1],[13,2,13,8],[5,0,6,8],[7,0,8,8],[9,0,10,8],[14,0,15,1],[14,2,15,8],[27,0,29,1],[27,2,29,2],[20,0,21,1],[20,2,21,8],[22,0,23,1],[22,2,23,8],[28,3,28,7],[27,3,27,8],[26,0,26,8],[36,0,41,8],[35,0,35,8],[30,0,30,1],[31,0,31,1],[32,0,32,1],[33,0,33,1],[32,3,32,7],[33,3,33,7]]}
[{"$f":"+'Cover Page'!$B$29","v":"Annual Performance Report 2021"},null,null,null,{"$f":"+'Cover Page'!$B$33","v":"Tyseley Energy from Waste Plant"}]
[]
["Residue Quality Monitoring Requirements"]
[]
["Summary of monitoring undertaken and compliance"]
["As per permit requirements"]
[]
[]
[]
[]
[]
[]
["Commentary on any specific events"]
["Date & Event",null,"Description"]
[]
[]
[]
[]
[]
[]
[]
[]
[]
[]
[]
[]
["Residue Quality Monitoring Results"]
["Parameter (unit) ",null,"Limit","Normal Operation "]
[null,null,null,"Bottom ash  ",null,null,null,null,"APC Residues"]
[null,null,null,"Q1","Q2","Q3","Q4","Average"]
["Loss on Ignition (average %)",null,"<5%",3.25,1.76,3.89,3.46,{"$f":"AVERAGE(D31:G31)","v":3.09}]
["Total Organic Carbon (average %)",null,"<3%"]
["No. of Assessments Undertaken",null,"---"]
["No. of Hazardous Results",null,"---",0]
[]
["Comments :"]

{"sheet":"Water","index":11,"n_rows":36,"n_cols":10,"rows_kept":36,"cut":false,"hidden":false,"merged":[[5,0,6,9],[7,0,8,9],[9,0,10,9],[12,0,12,9],[13,0,13,1],[13,2,13,9],[19,0,19,9],[20,0,20,2],[20,3,20,5],[14,0,15,1],[14,2,15,9],[16,0,17,1],[16,2,17,9],[21,0,21,2],[21,3,21,5],[22,0,22,2],[22,3,22,5],[23,0,23,2],[23,3,23,5],[27,0,27,2],[27,3,27,5],[24,0,24,2],[24,3,24,5],[25,0,25,2],[25,3,25,5],[26,0,26,2],[26,3,26,5],[28,0,28,2],[28,3,28,5],[29,0,29,2],[29,3,29,5],[30,0,30,2],[30,3,30,5],[34,0,34,2],[34,3,34,5],[35,0,35,2],[35,3,35,5],[31,0,31,2],[31,3,31,5],[32,0,32,2],[32,3,32,5],[33,0,33,2],[33,3,33,5]]}
[{"$f":"+'Cover Page'!$B$29","v":"Annual Performance Report 2021"},null,null,null,{"$f":"+'Cover Page'!$B$33","v":"Tyseley Energy from Waste Plant"}]
[]
["Emissions to Water"]
[]
["Summary of monitoring undertaken and compliance"]
["As per Severn Trent Consent to discharge of trade effluent to public foul sewer"]
[]
[]
[]
[]
[]
[]
["Commentary on any specific events"]
["Date & Event",null,"Description"]
[]
[]
[]
[]
[]
["Emissions to Water / Sewer"]
["Parameter",null,null,"Monitoring Frequency",null,null,"Limit","Target","Max.","Average"]
["Outlet 1"]
["SULPHATE",null,null,"Periodic",null,null,1500,null,681,681]
["CHROMIUM (Cr)",null,null,"Periodic",null,null,5,null,4.2000000000000003E-2,4.2000000000000003E-2]
["COPPER (Cu)",null,null,"Periodic",null,null,5,null,7.0999999999999994E-2,7.0999999999999994E-2]
["LEAD (Pb)",null,null,"Periodic",null,null,5,null,0.19,0.19]
["NICKEL (Ni)",null,null,"Periodic",null,null,5,null,2.1999999999999999E-2,2.1999999999999999E-2]
["ZINC (Zn)",null,null,"Periodic",null,null,10,null,0.47,0.47]
["PH",null,null,"Periodic",null,null,12.5,null,12,12]
["Outlet 2"]
["CHROMIUM (Cr)",null,null,"Periodic",null,null,5]
["COPPER (Cu)",null,null,"Periodic",null,null,5]
["LEAD (Pb)",null,null,"Periodic",null,null,5]
["NICKEL (Ni)",null,null,"Periodic",null,null,5]
["ZINC (Zn)",null,null,"Periodic",null,null,10]
["PH",null,null,"Periodic",null,null,12.5]

{"sheet":"Air (periodic)","index":12,"n_rows":41,"n_cols":14,"rows_kept":41,"cut":false,"hidden":false,"merged":[[9,9,9,10],[9,5,9,8],[5,13,8,16],[9,13,11,16],[8,0,8,10],[5,0,6,10],[11,0,11,1],[12,0,12,1],[11,3,11,4],[12,3,12,4],[9,0,10,1],[9,3,10,4],[9,2,10,2],[16,0,16,1],[17,0,17,1],[18,0,18,1],[13,0,13,1],[14,0,14,1],[15,0,15,1],[41,0,42,10],[27,0,27,1],[28,0,28,1],[24,0,24,1],[25,0,25,1],[39,0,39,1],[29,0,29,1],[30,0,30,1],[31,0,31,1],[32,0,32,1],[33,0,33,1],[34,0,34,1],[39,3,39,4],[31,3,31,4],[32,3,32,4],[38,3,38,4],[40,0,40,10],[19,0,19,1],[20,0,20,1],[21,0,21,1],[36,3,36,4],[37,3,37,4],[35,0,35,1],[36,0,36,1],[37,0,37,1],[38,0,38,1],[26,0,26,1],[34,3,34,4],[22,0,22,1],[23,0,23,1],[13,3,13,4],[14,3,14,4],[15,3,15,4],[16,3,16,4],[17,3,17,4],[18,3,18,4],[29,3,29,4],[35,3,35,4],[19,3,19,4],[20,3,20,4],[21,3,21,4],[24,3,24,4],[25,3,25,4],[26,3,26,4],[33,3,33,4],[27,3,27,4],[28,3,28,4],[30,3,30,4],[22,3,22,4],[23,3,23,4]]}
[{"$f":"+'Cover Page'!$B$29","v":"Annual Performance Report 2021"},null,null,null,{"$f":"+'Cover Page'!$B$33","v":"Tyseley Energy from Waste Plant"}]
[]
["Emissions to Air (periodically monitored)"]
[]
["Summary of monitoring undertaken, standards used and compliance",null,null,null,null,null,null,null,null,null,null,null,null,"Notes:"]
["As per permit requirements",null,null,null,null,null,null,null,null,null,null,null,null,"Template may require adjustment for any bespoke monitoring requirements of permit. "]
[]
[]
["Results of emissions to air that are periodically monitored"]
["Substance",null,"Ref. Period","Emission Limit Value",null,null,null,null,null,"Average",null,null,null,"User to add additional tables as necessary, depending on whether quarterly or bi-annual reporting is required for the compliance year"]
[null,null,null,null,null,"A1 (Q1)","A1 (Q3)","A2 (Q1)","A2 (Q3)","A1","A2"]
["Hydrogen fluoride",null,"1 hr","2 mg/m3",null,0.05,0.05,0.05,0.04,{"$f":"AVERAGE(F12,G12)","v":0.05},{"$f":"AVERAGE(H12,I12)","v":4.4999999999999998E-2}]
["Cd and Th and their compounds",null,"6-8hrs","0.05 mg/m3",null,7.7999999999999999E-4,6.8999999999999997E-4,8.0999999999999996E-4,7.2000000000000005E-4,7.3499999999999998E-4,7.6500000000000005E-4]
["Hg and its compounds",null,"6-8hrs","0.05 mg/m3",null,7.6999999999999996E-4,7.3999999999999999E-4,2.8E-3,1.1000000000000001E-3,7.5500000000000003E-4,1.9499999999999999E-3]
["Sb, As, Pb, Cr, Co, Cu, Mn, Ni, V and their compounds",null,"6-8hrs","0.5 mg/m3",null,2.3E-2,2.1999999999999999E-2,4.2000000000000003E-2,2.4E-2,2.2499999999999999E-2,3.3000000000000002E-2]
["Dioxins & Furans (I-TEQ)",null,"6-8hrs","0.1 ng/m3",null,7.1000000000000004E-3,1.4E-3,0.02,1.2E-2,4.2500000000000003E-3,1.6E-2]
["PCBs (WHO-TEQ Humans / Mammals)",null,"6-8hrs","None set ng/m3",null,1.1000000000000001E-3,2.0000000000000001E-4,3.0000000000000001E-3,1.1000000000000001E-3,6.5000000000000008E-4,2.0500000000000002E-3]
["PCBs (WHO-TEQ Fish)",null,"6-8hrs","None set ng/m3",null,5.8E-5,1.2E-5,1.5E-3,7.2999999999999999E-5,3.4999999999999997E-5,7.8649999999999998E-4]
["PCBs (WHO-TEQ Birds)",null,"6-8hrs","None set ng/m3",null,3.0000000000000001E-3,9.7000000000000005E-4,6.1000000000000004E-3,9.7999999999999997E-3,1.9850000000000002E-3,7.9500000000000005E-3]
["Dioxins & Furans (WHO-TEQ Humans / Mammals)",null,"6-8hrs","None set ng/m3",null,7.9000000000000008E-3,1.6000000000000001E-3,2.1999999999999999E-2,1.2999999999999999E-2,4.7500000000000007E-3,1.7499999999999998E-2]
["Dioxins & Furans (WHO-TEQ Fish)",null,"6-8hrs","None set ng/m3",null,7.4000000000000003E-3,1.5E-3,2.1000000000000001E-2,1.2E-2,4.45E-3,1.6500000000000001E-2]
["Dioxins & Furans (WHO-TEQ Birds)",null,"6-8hrs","None set ng/m3",null,1.2E-2,2.5000000000000001E-3,3.1E-2,1.7000000000000001E-2,7.2500000000000004E-3,2.4E-2]
["Nitrous Oxide (N2O)",null,"1 hr","None set ng/m4",null,0.24,0.24,0.26,0.24,0.24,0.25]
["PAH Total",null,"6-8hrs","None set ng/m5",null,0.15,0.17,0.15,0.16,0.16,0.155]
["Anthanthrene",null,"6-8hrs","None set µg/m3",null,2.0999999999999999E-3,2E-3,2.0999999999999999E-3,1.9E-3,2.0499999999999997E-3,2E-3]
["Benzo(a)anthracene",null,"6-8hrs","None set µg/m3",null,2.0999999999999999E-3,2.7000000000000001E-3,2.0999999999999999E-3,2.3E-3,2.4000000000000002E-3,2.1999999999999997E-3]
["Benzo(a)pyrene",null,"6-8hrs","None set µg/m3",null,2.0999999999999999E-3,2E-3,2.0999999999999999E-3,1.9E-3,2.0499999999999997E-3,2E-3]
["Benzo(b)fluoranthene",null,"6-8hrs","None set µg/m3",null,2.0999999999999999E-3,2E-3,2.0999999999999999E-3,1.9E-3,2.0499999999999997E-3,2E-3]
["Benzo(b)naptho(2,1-d) thiophene",null,"6-8hrs","None set µg/m3",null,2.0999999999999999E-3,2E-3,2.0999999999999999E-3,2.7000000000000001E-3,2.0499999999999997E-3,2.4000000000000002E-3]
["Benzo(c)phenanthrene",null,"6-8hrs","None set µg/m3",null,2.0999999999999999E-3,2E-3,2.0999999999999999E-3,1.9E-3,2.0499999999999997E-3,2E-3]
["Benzo(ghi)perylene",null,"6-8hrs","None set µg/m3",null,2.0999999999999999E-3,2.7000000000000001E-3,2.0999999999999999E-3,4.7000000000000002E-3,2.4000000000000002E-3,3.4000000000000002E-3]
["Benzo(k)fluoranthene",null,"6-8hrs","None set µg/m3",null,2.0999999999999999E-3,2E-3,2.0999999999999999E-3,1.9E-3,2.0499999999999997E-3,2E-3]
["Cholanthrene",null,"6-8hrs","None set µg/m3",null,2.0999999999999999E-3,2E-3,2.0999999999999999E-3,1.9E-3,2.0499999999999997E-3,2E-3]
["Chrysene",null,"6-8hrs","None set µg/m3",null,2.0999999999999999E-3,4.4999999999999997E-3,2.0999999999999999E-3,3.5999999999999999E-3,3.3E-3,2.8500000000000001E-3]
["Cyclopenta(cd)pyrene",null,"6-8hrs","None set µg/m3",null,2.0999999999999999E-3,2E-3,2.0999999999999999E-3,1.9E-3,2.0499999999999997E-3,2E-3]
["Dibenzo(ai)pyrene",null,"6-8hrs","None set µg/m3",null,2.0999999999999999E-3,2E-3,2.0999999999999999E-3,1.9E-3,2.0499999999999997E-3,2E-3]
["Dibenzo(ah)anthracene",null,"6-8hrs","None set µg/m3",null,2.0999999999999999E-3,2E-3,2.0999999999999999E-3,1.9E-3,2.0499999999999997E-3,2E-3]
["Fluoranthene",null,"6-8hrs","None set µg/m3",null,2.1000000000000001E-2,5.5E-2,1.9E-2,0.04,3.7999999999999999E-2,2.9499999999999998E-2]
["Indeno(123-cd) pyrene",null,"6-8hrs","None set µg/m3",null,2.0999999999999999E-3,2E-3,2.0999999999999999E-3,1.9E-3,2.0499999999999997E-3,2E-3]
["Naphthalene",null,"6-8hrs","None set µg/m3",null,9.9000000000000005E-2,8.6999999999999994E-2,0.1,8.7999999999999995E-2,9.2999999999999999E-2,9.4E-2]
["Comments :"]

{"sheet":"Air (CEMS)","index":13,"n_rows":27,"n_cols":16,"rows_kept":27,"cut":false,"hidden":false,"merged":[[15,0,16,0],[17,0,18,0],[13,0,14,0],[5,0,6,12],[7,0,8,12],[10,0,10,12],[11,0,12,0],[11,2,12,2],[11,1,12,1],[11,3,11,4],[11,5,11,6],[11,7,11,8],[11,9,11,10],[11,11,11,12],[19,0,20,0],[21,0,22,0],[23,0,24,0],[25,0,25,12],[27,0,28,12]]}
[{"$f":"+'Cover Page'!$B$29","v":"Annual Performance Report 2021"},null,null,null,null,null,null,null,{"$f":"+'Cover Page'!$B$33","v":"Tyseley Energy from Waste Plant"}]
[]
["Emissions to Air (continuously monitored)"]
[null,null,null,null,null,null,null,null,null,null,null,null,null,null,null,"Notes:"]
["Summary of monitoring undertaken, standards used and compliance",null,null,null,null,null,null,null,null,null,null,null,null,null,null,"Template may require adjustment for any bespoke monitoring requirements of permit"]
["MCERT CEM System",null,null,null,null,null,null,null,null,null,null,null,null,null,null,"Report to 2 decimal places, i.e. xx.xx%"]
[]
[]
[]
[]
["Results of emissions to air that are continuously monitored (maximum and average values for each line)"]
["Substance","Reference Period","Emission Limit Value","A1",null,"A2",null,"A3",null,"A4",null,"A5"]
[null,null,null,"Max.","Avg.","Max.","Avg.","Max.","Avg.","Max.","Avg.","Max.","Avg."]
["Oxides of nitrogen","Daily mean","200 mg/m3 ",{"$f":"NOx!O19","v":194.98},{"$f":"NOx!N19","v":159.2175},{"$f":"NOx!O34","v":195.5},{"$f":"NOx!N34","v":169.65833333333333}]
[null,"½ hourly mean","400 mg/m3 ",{"$f":"NOx!M19","v":260.22000000000003},{"$f":"NOx!L19","v":159.13999999999999},{"$f":"NOx!M34","v":306.89},{"$f":"NOx!L34","v":169.38250000000002}]
["Particulates","Daily mean","10 mg/m3",{"$f":"Particulates!O19","v":3.39},{"$f":"Particulates!N19","v":1.0866666666666667},{"$f":"Particulates!O34","v":3.49},{"$f":"Particulates!N34","v":0.32083333333333336}]
[null,"½ hourly mean","30 mg/m3 ",{"$f":"Particulates!M19","v":10.95},{"$f":"Particulates!L19","v":1.0924999999999998},{"$f":"Particulates!M34","v":14.72},{"$f":"Particulates!L34","v":0.33166666666666672}]
["Total Organic Carbon ","Daily mean","10 mg/m3 ",{"$f":"TOC!O19","v":1.58},{"$f":"TOC!N19","v":0.72333333333333327},{"$f":"TOC!O34","v":2.54},{"$f":"TOC!N34","v":1.0199999999999998}]
[null,"½ hourly mean","20 mg/m3 ",{"$f":"TOC!M19","v":5.58},{"$f":"TOC!L19","v":0.8091666666666667},{"$f":"TOC!M34","v":14.05},{"$f":"TOC!L34","v":1.0116666666666665}]
["Hydrogen chloride ","Daily mean","10 mg/m3 ",{"$f":"HCl!O19","v":8.66},{"$f":"HCl!N19","v":6.6116666666666672},{"$f":"HCl!O34","v":9.09},{"$f":"HCl!N34","v":6.5758333333333328}]
[null,"½ hourly mean","60 mg/m3 ",{"$f":"HCl!M19","v":52.07},{"$f":"HCl!L19","v":6.6483333333333334},{"$f":"HCl!M34","v":50.39},{"$f":"HCl!L34","v":6.5991666666666653}]
["Sulphur dioxide","Daily mean","50 mg/m3 ",{"$f":"'SO2'!O19","v":28.73},{"$f":"'SO2'!N19","v":8.5291666666666668},{"$f":"'SO2'!O34","v":38.89},{"$f":"'SO2'!N34","v":15.074166666666668}]
[null,"½ hourly mean","200 mg/m3 ",{"$f":"'SO2'!M19","v":157.66999999999999},{"$f":"'SO2'!L19","v":8.5683333333333334},{"$f":"'SO2'!M34","v":188.13},{"$f":"'SO2'!L34","v":15.234999999999999}]
["Carbon monoxide ","Daily mean","50 mg/m3 ",{"$f":"'CO 95% 10 min'!Q19","v":27.26},{"$f":"'CO 95% 10 min'!P19","v":10.520833333333334},{"$f":"'CO 95% 10 min'!Q34","v":32.93},{"$f":"'CO 95% 10 min'!P34","v":12.400833333333331}]
[null,"95%ile 10-min avg *","150 mg/m3 *",{"$f":"'CO 95% 10 min'!M19","v":10.525},{"$f":"'CO 95% 10 min'!N19","v":10.511666666666665},{"$f":"'CO 95% 10 min'!M34","v":12.383333333333331},{"$f":"'CO 95% 10 min'!N34","v":12.372500000000002}]
["* = delete or amend as appropriate"]
["Comments :"]

{"sheet":"HCl","index":14,"n_rows":79,"n_cols":17,"rows_kept":79,"cut":false,"hidden":false,"merged":[[12,16,15,18],[51,9,63,9],[66,9,78,9],[4,9,4,14],[4,1,4,3],[4,4,4,6],[48,0,51,6],[47,0,47,6],[6,9,18,9],[21,9,33,9],[36,9,48,9],[3,16,7,18],[9,16,11,18]]}
[{"$f":"+'Cover Page'!$B$29","v":"Annual Performance Report 2021"},null,null,null,{"$f":"+'Cover Page'!$B$33","v":"Tyseley Energy from Waste Plant"}]
[]
["Monitoring of Hydrogen Chloride emissions",null,null,"Whole Installation",null,null,null,null,null,{"$f":"+A3","v":"Monitoring of Hydrogen Chloride emissions"},null,null,null,"Per Combustion Line",null,null,"Notes:"]
[null,null,null,null,null,null,null,null,null,null,null,null,null,null,null,null,"User to add logic to complete Whole installation, Table A5:G18. From the data in Per Combustion Line, Table J6:O79, subject to No. of lines installed"]
["mg/Nm3","1/2 Hourly Reference Periods",null,null,"Daily Reference Periods"]
[{"$f":"+'Cover Page'!C39","v":2021},"1/2 hourly HCl ELV","Monthly 1/2 hourly mean","Highest 1/2 hourly maximum","Daily HCl ELV","Monthly daily mean","Highest daily maximum",null,null,{"$f":"+A6","v":2021},"mg/Nm3","Monthly 1/2 hourly mean","Monthly 1/2 hourly maximum","Monthly daily mean","Monthly daily maximum"]
["Jan",60,{"$f":"AVERAGE(L7,L22)","v":6.83},{"$f":"MAX(M7,M22)","v":25.74},10,{"$f":"AVERAGE(N7,N22)","v":6.8450000000000006},{"$f":"MAX(O7,O22)","v":8.06},null,null,"A1","Jan",6.99,25.74,6.99,8.06]
["Feb",60,{"$f":"AVERAGE(L8,L23)","v":7.1150000000000002},{"$f":"MAX(M8,M23)","v":35.08},10,{"$f":"AVERAGE(N8,N23)","v":7.1050000000000004},{"$f":"MAX(O8,O23)","v":8.85},null,null,null,"Feb",6.76,27.4,6.73,8.15]
["Mar",60,6.415,{"$f":"MAX(M9,M24)","v":52.07},10,6.43,7.97,null,null,null,"Mar",6.57,52.07,6.57,7.97,null,"Whole Installation table A5:G18:"]
["Apr",60,6.67,38.770000000000003,10,6.665,8.5500000000000007,null,null,null,"Apr",6.89,34.51,6.88,8.5500000000000007,null,"Mean: for 1/2 hourly and daily periods calculate mean of values across all operational combustion lines for the month"]
["May",60,5.98,40.56,10,5.93,7.88,null,null,null,"May",6,40.56,6,7.88]
["Jun",60,6.7100000000000009,39.89,10,6.59,7.88,null,null,null,"Jun",6.69,19.8,6.65,7.38]
["Jul",60,6.7650000000000006,{"$f":"MAX(M13,M28)","v":37.29},10,{"$f":"AVERAGE(N13,N28)","v":6.74},9.09,null,null,null,"Jul",6.62,26.14,6.57,7.83,null,"Maximum: for 1/2 hourly and daily periods use the highest value across all operational combustion lines for the month"]
["Aug",60,5.7949999999999999,34.18,10,5.8100000000000005,7.81,null,null,null,"Aug",6.13,34.18,6.16,7.81]
["Sep",60,6.8049999999999997,35.75,10,6.8,8.6300000000000008,null,null,null,"Sep",6.56,29.38,6.55,7.95]
["Oct",60,6.23,49.33,10,6.23,8.06,null,null,null,"Oct",6.12,34.76,6.12,6.81]
["Nov",60,7.3049999999999997,50.1,10,7.1349999999999998,8.25,null,null,null,"Nov",7.47,50.1,7.12,8.25]
["Dec",60,6.8650000000000002,50.39,10,6.8450000000000006,8.66,null,null,null,"Dec",6.98,29.61,7,8.66]
[null,null,null,null,null,null,null,null,null,null,"Annual",{"$f":"AVERAGE(L7:L18)","v":6.6483333333333334},{"$f":"MAX(M7:M18)","v":52.07},{"$f":"AVERAGE(N7:N18)","v":6.6116666666666672},{"$f":"MAX(O7:O18)","v":8.66}]
[]
[null,null,null,null,null,null,null,null,null,{"$f":"+A6","v":2021},"mg/Nm3","Monthly 1/2 hourly mean","Monthly 1/2 hourly maximum","Monthly daily mean","Monthly daily maximum"]
[null,null,null,null,null,null,null,null,null,"A2","Jan",6.67,20.149999999999999,6.7,7.61]
[null,null,null,null,null,null,null,null,null,null,"Feb",7.47,35.08,7.48,8.85]
[null,null,null,null,null,null,null,null,null,null,"Mar",6.26,35.840000000000003,6.29,7.26]
[null,null,null,null,null,null,null,null,null,null,"Apr",6.45,38.770000000000003,6.45,7.24]
[null,null,null,null,null,null,null,null,null,null,"May",5.96,36.369999999999997,5.86,7.33]
[null,null,null,null,null,null,null,null,null,null,"Jun",6.73,39.89,6.53,7.88]
[null,null,null,null,null,null,null,null,null,null,"Jul",6.91,37.29,6.91,9.09]
[null,null,null,null,null,null,null,null,null,null,"Aug",5.46,28.94,5.46,7.58]
[null,null,null,null,null,null,null,null,null,null,"Sep",7.05,35.75,7.05,8.6300000000000008]
[null,null,null,null,null,null,null,null,null,null,"Oct",6.34,49.33,6.34,8.06]
[null,null,null,null,null,null,null,null,null,null,"Nov",7.14,39.450000000000003,7.15,8.24]
[null,null,null,null,null,null,null,null,null,null,"Dec",6.75,50.39,6.69,8.52]
[null,null,null,null,null,null,null,null,null,null,"Annual",{"$f":"AVERAGE(L22:L33)","v":6.5991666666666653},{"$f":"MAX(M22:M33)","v":50.39},{"$f":"AVERAGE(N22:N33)","v":6.5758333333333328},{"$f":"MAX(O22:O33)","v":9.09}]
[]
[null,null,null,null,null,null,null,null,null,{"$f":"+A6","v":2021},"mg/Nm3","Monthly 1/2 hourly mean","Monthly 1/2 hourly maximum","Monthly daily mean","Monthly daily maximum"]
[null,null,null,null,null,null,null,null,null,"A3","Jan"]
[null,null,null,null,null,null,null,null,null,null,"Feb"]
[null,null,null,null,null,null,null,null,null,null,"Mar"]
[null,null,null,null,null,null,null,null,null,null,"Apr"]
[null,null,null,null,null,null,null,null,null,null,"May"]
[null,null,null,null,null,null,null,null,null,null,"Jun"]
[null,null,null,null,null,null,null,null,null,null,"Jul"]
[null,null,null,null,null,null,null,null,null,null,"Aug"]
[null,null,null,null,null,null,null,null,null,null,"Sep"]
[null,null,null,null,null,null,null,null,null,null,"Oct"]
[null,null,null,null,null,null,null,null,null,null,"Nov"]
["Comments :",null,null,null,null,null,null,null,null,null,"Dec"]
[null,null,null,null,null,null,null,null,null,null,"Annual",{"$f":"AVERAGE(L37:L48)","v":{"$error":"#DIV/0!"}},{"$f":"MAX(M37:M48)","v":0},{"$f":"AVERAGE(N37:N48)","v":{"$error":"#DIV/0!"}},{"$f":"MAX(O37:O48)","v":0}]
[]
[null,null,null,null,null,null,null,null,null,{"$f":"+A6","v":2021},"mg/Nm3","Monthly 1/2 hourly mean","Monthly 1/2 hourly maximum","Monthly daily mean","Monthly daily maximum"]
[null,null,null,null,null,null,null,null,null,"A4","Jan"]
[null,null,null,null,null,null,null,null,null,null,"Feb"]
[null,null,null,null,null,null,null,null,null,null,"Mar"]
[null,null,null,null,null,null,null,null,null,null,"Apr"]
[null,null,null,null,null,null,null,null,null,null,"May"]
[null,null,null,null,null,null,null,null,null,null,"Jun"]
[null,null,null,null,null,null,null,null,null,null,"Jul"]
[null,null,null,null,null,null,null,null,null,null,"Aug"]
[null,null,null,null,null,null,null,null,null,null,"Sep"]
[null,null,null,null,null,null,null,null,null,null,"Oct"]
[null,null,null,null,null,null,null,null,null,null,"Nov"]
[null,null,null,null,null,null,null,null,null,null,"Dec"]
[null,null,null,null,null,null,null,null,null,null,"Annual",{"$f":"AVERAGE(L52:L63)","v":{"$error":"#DIV/0!"}},{"$f":"MAX(M52:M63)","v":0},{"$f":"AVERAGE(N52:N63)","v":{"$error":"#DIV/0!"}},{"$f":"MAX(O52:O63)","v":0}]
[]
[null,null,null,null,null,null,null,null,null,{"$f":"+A6","v":2021},"mg/Nm3","Monthly 1/2 hourly mean","Monthly 1/2 hourly maximum","Monthly daily mean","Monthly daily maximum"]
[null,null,null,null,null,null,null,null,null,"A5","Jan"]
[null,null,null,null,null,null,null,null,null,null,"Feb"]
[null,null,null,null,null,null,null,null,null,null,"Mar"]
[null,null,null,null,null,null,null,null,null,null,"Apr"]
[null,null,null,null,null,null,null,null,null,null,"May"]
[null,null,null,null,null,null,null,null,null,null,"Jun"]
[null,null,null,null,null,null,null,null,null,null,"Jul"]
[null,null,null,null,null,null,null,null,null,null,"Aug"]
[null,null,null,null,null,null,null,null,null,null,"Sep"]
[null,null,null,null,null,null,null,null,null,null,"Oct"]
[null,null,null,null,null,null,null,null,null,null,"Nov"]
[null,null,null,null,null,null,null,null,null,null,"Dec"]
[null,null,null,null,null,null,null,null,null,null,"Annual",{"$f":"AVERAGE(L67:L78)","v":{"$error":"#DIV/0!"}},{"$f":"MAX(M67:M78)","v":0},{"$f":"AVERAGE(N67:N78)","v":{"$error":"#DIV/0!"}},{"$f":"MAX(O67:O78)","v":0}]

{"sheet":"SO2","index":15,"n_rows":79,"n_cols":17,"rows_kept":79,"cut":false,"hidden":false,"merged":[[3,16,7,18],[9,16,11,18],[12,16,15,18],[66,9,78,9],[4,1,4,3],[4,4,4,6],[4,9,4,14],[6,9,18,9],[21,9,33,9],[36,9,48,9],[47,0,47,6],[48,0,51,6],[51,9,63,9]]}
[{"$f":"+'Cover Page'!$B$29","v":"Annual Performance Report 2021"},null,null,null,{"$f":"+'Cover Page'!$B$33","v":"Tyseley Energy from Waste Plant"}]
[]
["Monitoring of Sulphur dioxide emissions",null,null,"Whole Installation",null,null,null,null,null,{"$f":"+A3","v":"Monitoring of Sulphur dioxide emissions"},null,null,null,"Per Combustion Line",null,null,"Notes:"]
[null,null,null,null,null,null,null,null,null,null,null,null,null,null,null,null,"User to add logic to complete Whole installation, Table A5:G18. From the data in Per Combustion Line, Table J6:O79, subject to No. of lines installed"]
["mg/Nm3","1/2 Hourly Reference Periods",null,null,"Daily Reference Periods"]
[{"$f":"+'Cover Page'!C39","v":2021},"1/2 hourly SO2 ELV","Monthly 1/2 hourly mean","Highest 1/2 hourly maximum","Daily SO2 ELV","Monthly daily mean","Highest daily maximum",null,null,{"$f":"+A6","v":2021},"mg/Nm3","Monthly 1/2 hourly mean","Monthly 1/2 hourly maximum","Monthly daily mean","Monthly daily maximum"]
["Jan",200,{"$f":"AVERAGE(L7,L22)","v":7.5},{"$f":"MAX(M7,M22)","v":61.16},50,{"$f":"AVERAGE(N7,N22)","v":7.5850000000000009},{"$f":"MAX(O7,O22)","v":11.65},null,null,"A1","Jan",5.86,61.16,5.86,10.25]
["Feb",200,{"$f":"AVERAGE(L8,L23)","v":11.434999999999999},{"$f":"MAX(M8,M23)","v":157.66999999999999},50,{"$f":"AVERAGE(N8,N23)","v":11.15},{"$f":"MAX(O8,O23)","v":20.34},null,null,null,"Feb",8.42,157.66999999999999,8.2100000000000009,12.24]
["Mar",200,9.1449999999999996,94.98,50,9.1,15.44,null,null,null,"Mar",7.1,94.98,7.09,12.37,null,"Whole Installation table A5:G18:"]
["Apr",200,9.6050000000000004,145.08000000000001,50,9.6050000000000004,15.14,null,null,null,"Apr",7.39,145.08000000000001,7.39,12.3,null,"Mean: for 1/2 hourly and daily periods calculate mean of values across all operational combustion lines for the month"]
["May",200,9.5350000000000001,65.040000000000006,50,{"$f":"AVERAGE(N11,N26)","v":9.5949999999999989},{"$f":"MAX(O11,O26)","v":27.54},null,null,null,"May",5.16,65.040000000000006,5.16,10.74]
["Jun",200,16.18,160.37,50,15.21,31.22,null,null,null,"Jun",9.09,84.62,8.9700000000000006,19.920000000000002]
["Jul",200,16.740000000000002,120.94,50,16.675000000000001,33.950000000000003,null,null,null,"Jul",13.75,81.88,13.64,28.73,null,"Maximum: for 1/2 hourly and daily periods use the highest value across all operational combustion lines for the month"]
["Aug",200,14.545,85.75,50,14.525,38.89,null,null,null,"Aug",11.39,79.819999999999993,11.36,19.489999999999998]
["Sep",200,12.065000000000001,83.79,50,12.07,22.43,null,null,null,"Sep",9.91,83.79,9.91,18.25]
["Oct",200,10.395,188.13,50,10.39,17.920000000000002,null,null,null,"Oct",7.87,73.62,7.87,9.4600000000000009]
["Nov",200,12.295,145.54,50,12.375,22.93,null,null,null,"Nov",8.52,74.8,8.51,12.8]
["Dec",200,{"$f":"AVERAGE(L18,L33)","v":13.379999999999999},132.57,50,13.34,26.93,null,null,null,"Dec",8.36,77.900000000000006,8.3800000000000008,13.56]
[null,null,null,null,null,null,null,null,null,null,"Annual",{"$f":"AVERAGE(L7:L18)","v":8.5683333333333334},{"$f":"MAX(M7:M18)","v":157.66999999999999},{"$f":"AVERAGE(N7:N18)","v":8.5291666666666668},{"$f":"MAX(O7:O18)","v":28.73}]
[]
[null,null,null,null,null,null,null,null,null,{"$f":"+A6","v":2021},"mg/Nm3","Monthly 1/2 hourly mean","Monthly 1/2 hourly maximum","Monthly daily mean","Monthly daily maximum"]
[null,null,null,null,null,null,null,null,null,"A2","Jan",9.14,59.16,9.31,11.65]
[null,null,null,null,null,null,null,null,null,null,"Feb",14.45,105.65,14.09,20.34]
[null,null,null,null,null,null,null,null,null,null,"Mar",11.19,66.83,11.11,15.44]
[null,null,null,null,null,null,null,null,null,null,"Apr",11.82,143.68,11.82,15.14]
[null,null,null,null,null,null,null,null,null,null,"May",13.91,50.28,14.03,27.54]
[null,null,null,null,null,null,null,null,null,null,"Jun",23.27,160.37,21.45,31.22]
[null,null,null,null,null,null,null,null,null,null,"Jul",19.73,120.94,19.71,33.950000000000003]
[null,null,null,null,null,null,null,null,null,null,"Aug",17.7,85.75,17.690000000000001,38.89]
[null,null,null,null,null,null,null,null,null,null,"Sep",14.22,83.7,14.23,22.43]
[null,null,null,null,null,null,null,null,null,null,"Oct",12.92,188.13,12.91,17.920000000000002]
[null,null,null,null,null,null,null,null,null,null,"Nov",16.07,145.54,16.239999999999998,22.93]
[null,null,null,null,null,null,null,null,null,null,"Dec",18.399999999999999,132.57,18.3,26.93]
[null,null,null,null,null,null,null,null,null,null,"Annual",{"$f":"AVERAGE(L22:L33)","v":15.234999999999999},{"$f":"MAX(M22:M33)","v":188.13},{"$f":"AVERAGE(N22:N33)","v":15.074166666666668},{"$f":"MAX(O22:O33)","v":38.89}]
[]
[null,null,null,null,null,null,null,null,null,{"$f":"+A6","v":2021},"mg/Nm3","Monthly 1/2 hourly mean","Monthly 1/2 hourly maximum","Monthly daily mean","Monthly daily maximum"]
[null,null,null,null,null,null,null,null,null,"A3","Jan"]
[null,null,null,null,null,null,null,null,null,null,"Feb"]
[null,null,null,null,null,null,null,null,null,null,"Mar"]
[null,null,null,null,null,null,null,null,null,null,"Apr"]
[null,null,null,null,null,null,null,null,null,null,"May"]
[null,null,null,null,null,null,null,null,null,null,"Jun"]
[null,null,null,null,null,null,null,null,null,null,"Jul"]
[null,null,null,null,null,null,null,null,null,null,"Aug"]
[null,null,null,null,null,null,null,null,null,null,"Sep"]
[null,null,null,null,null,null,null,null,null,null,"Oct"]
[null,null,null,null,null,null,null,null,null,null,"Nov"]
["Comments :",null,null,null,null,null,null,null,null,null,"Dec"]
[null,null,null,null,null,null,null,null,null,null,"Annual",{"$f":"AVERAGE(L37:L48)","v":{"$error":"#DIV/0!"}},{"$f":"MAX(M37:M48)","v":0},{"$f":"AVERAGE(N37:N48)","v":{"$error":"#DIV/0!"}},{"$f":"MAX(O37:O48)","v":0}]
[]
[null,null,null,null,null,null,null,null,null,{"$f":"+A6","v":2021},"mg/Nm3","Monthly 1/2 hourly mean","Monthly 1/2 hourly maximum","Monthly daily mean","Monthly daily maximum"]
[null,null,null,null,null,null,null,null,null,"A4","Jan"]
[null,null,null,null,null,null,null,null,null,null,"Feb"]
[null,null,null,null,null,null,null,null,null,null,"Mar"]
[null,null,null,null,null,null,null,null,null,null,"Apr"]
[null,null,null,null,null,null,null,null,null,null,"May"]
[null,null,null,null,null,null,null,null,null,null,"Jun"]
[null,null,null,null,null,null,null,null,null,null,"Jul"]
[null,null,null,null,null,null,null,null,null,null,"Aug"]
[null,null,null,null,null,null,null,null,null,null,"Sep"]
[null,null,null,null,null,null,null,null,null,null,"Oct"]
[null,null,null,null,null,null,null,null,null,null,"Nov"]
[null,null,null,null,null,null,null,null,null,null,"Dec"]
[null,null,null,null,null,null,null,null,null,null,"Annual",{"$f":"AVERAGE(L52:L63)","v":{"$error":"#DIV/0!"}},{"$f":"MAX(M52:M63)","v":0},{"$f":"AVERAGE(N52:N63)","v":{"$error":"#DIV/0!"}},{"$f":"MAX(O52:O63)","v":0}]
[]
[null,null,null,null,null,null,null,null,null,{"$f":"+A6","v":2021},"mg/Nm3","Monthly 1/2 hourly mean","Monthly 1/2 hourly maximum","Monthly daily mean","Monthly daily maximum"]
[null,null,null,null,null,null,null,null,null,"A5","Jan"]
[null,null,null,null,null,null,null,null,null,null,"Feb"]
[null,null,null,null,null,null,null,null,null,null,"Mar"]
[null,null,null,null,null,null,null,null,null,null,"Apr"]
[null,null,null,null,null,null,null,null,null,null,"May"]
[null,null,null,null,null,null,null,null,null,null,"Jun"]
[null,null,null,null,null,null,null,null,null,null,"Jul"]
[null,null,null,null,null,null,null,null,null,null,"Aug"]
[null,null,null,null,null,null,null,null,null,null,"Sep"]
[null,null,null,null,null,null,null,null,null,null,"Oct"]
[null,null,null,null,null,null,null,null,null,null,"Nov"]
[null,null,null,null,null,null,null,null,null,null,"Dec"]
[null,null,null,null,null,null,null,null,null,null,"Annual",{"$f":"AVERAGE(L67:L78)","v":{"$error":"#DIV/0!"}},{"$f":"MAX(M67:M78)","v":0},{"$f":"AVERAGE(N67:N78)","v":{"$error":"#DIV/0!"}},{"$f":"MAX(O67:O78)","v":0}]

{"sheet":"NOx","index":16,"n_rows":79,"n_cols":17,"rows_kept":79,"cut":false,"hidden":false,"merged":[[3,16,7,18],[9,16,11,18],[12,16,15,18],[66,9,78,9],[4,1,4,3],[4,4,4,6],[4,9,4,14],[6,9,18,9],[21,9,33,9],[36,9,48,9],[47,0,47,6],[48,0,51,6],[51,9,63,9]]}
[{"$f":"+'Cover Page'!$B$29","v":"Annual Performance Report 2021"},null,null,null,{"$f":"+'Cover Page'!$B$33","v":"Tyseley Energy from Waste Plant"}]
[]
["Monitoring of Oxides of Nitrogen emissions",null,null,"Whole Installation",null,null,null,null,null,{"$f":"+A3","v":"Monitoring of Oxides of Nitrogen emissions"},null,null,null,"Per Combustion Line",null,null,"Notes:"]
[null,null,null,null,null,null,null,null,null,null,null,null,null,null,null,null,"User to add logic to complete Whole installation, Table A5:G18. From the data in Per Combustion Line, Table J6:O79, subject to No. of lines installed"]
["mg/Nm3","1/2 Hourly Reference Periods",null,null,"Daily Reference Periods"]
[{"$f":"+'Cover Page'!C39","v":2021},"1/2 hourly NOx ELV","Monthly 1/2 hourly mean","Highest 1/2 hourly maximum","Daily NOx ELV","Monthly daily mean","Highest daily maximum",null,null,{"$f":"+A6","v":2021},"mg/Nm3","Monthly 1/2 hourly mean","Monthly 1/2 hourly maximum","Monthly daily mean","Monthly daily maximum"]
["Jan",400,{"$f":"AVERAGE(L7,L22)","v":176.69499999999999},{"$f":"MAX(M7,M22)","v":252.97},200,{"$f":"AVERAGE(N7,N22)","v":176.965},{"$f":"MAX(O7,O22)","v":194.98},null,null,"A1","Jan",178.03,252.97,178.03,194.98]
["Feb",400,{"$f":"AVERAGE(L8,L23)","v":179.88},{"$f":"MAX(M8,M23)","v":260.22000000000003},200,{"$f":"AVERAGE(N8,N23)","v":179.99},{"$f":"MAX(O8,O23)","v":191.97},null,null,null,"Feb",179.92,260.22000000000003,180.21,191.67]
["Mar",400,174.07999999999998,306.89,200,173.97,190.36,null,null,null,"Mar",173.15,214.62,173.15,190.36,null,"Whole Installation table A5:G18:"]
["Apr",400,173.565,231.09,200,173.565,190.18,null,null,null,"Apr",171.9,228.99,171.9,186.88,null,"Mean: for 1/2 hourly and daily periods calculate mean of values across all operational combustion lines for the month"]
["May",400,175.68,255.7,200,175.595,195.5,null,null,null,"May",173.07,240.44,173.07,186.57]
["Jun",400,157.48000000000002,206.96,200,158.20500000000001,175.15,null,null,null,"Jun",158.02000000000001,199.42,157.55000000000001,171.2]
["Jul",400,152.465,283.99,200,152.83499999999998,193.06,null,null,null,"Jul",140.16,248.58,140.91,163.89,null,"Maximum: for 1/2 hourly and daily periods use the highest value across all operational combustion lines for the month"]
["Aug",400,{"$f":"AVERAGE(L14,L29)","v":150.83500000000001},256.24,200,150.72499999999999,{"$f":"MAX(O14,O29)","v":188.33},null,null,null,"Aug",137.74,230,137.51,168.74]
["Sep",400,152.315,234.27,200,152.25,180.27,null,null,null,"Sep",139.19,178.89,139.06,153.28]
["Oct",400,155.89500000000001,297.36,200,{"$f":"AVERAGE(N16,N31)","v":156.08499999999998},188.78,null,null,null,"Oct",143.36000000000001,190.97,143.72999999999999,165.77]
["Nov",400,157.005,251.76,200,157.06,184.79,null,null,null,"Nov",146.58000000000001,210.91,146.58000000000001,161.16999999999999]
["Dec",400,165.24,{"$f":"MAX(M18,M33)","v":227.03},200,166.01,179.17,null,null,null,"Dec",168.56,200.2,168.91,177.2]
[null,null,null,null,null,null,null,null,null,null,"Annual",{"$f":"AVERAGE(L7:L18)","v":159.13999999999999},{"$f":"MAX(M7:M18)","v":260.22000000000003},{"$f":"AVERAGE(N7:N18)","v":159.2175},{"$f":"MAX(O7:O18)","v":194.98}]
[]
[null,null,null,null,null,null,null,null,null,{"$f":"+A6","v":2021},"mg/Nm3","Monthly 1/2 hourly mean","Monthly 1/2 hourly maximum","Monthly daily mean","Monthly daily maximum"]
[null,null,null,null,null,null,null,null,null,"A2","Jan",175.36,230.15,175.9,190.88]
[null,null,null,null,null,null,null,null,null,null,"Feb",179.84,179.86,179.77,191.97]
[null,null,null,null,null,null,null,null,null,null,"Mar",175.01,306.89,174.79,188.36]
[null,null,null,null,null,null,null,null,null,null,"Apr",175.23,231.09,175.23,190.18]
[null,null,null,null,null,null,null,null,null,null,"May",178.29,255.7,178.12,195.5]
[null,null,null,null,null,null,null,null,null,null,"Jun",156.94,206.96,158.86000000000001,175.15]
[null,null,null,null,null,null,null,null,null,null,"Jul",164.77,283.99,164.76,193.06]
[null,null,null,null,null,null,null,null,null,null,"Aug",163.93,256.24,163.94,188.33]
[null,null,null,null,null,null,null,null,null,null,"Sep",165.44,234.27,165.44,180.27]
[null,null,null,null,null,null,null,null,null,null,"Oct",168.43,297.36,168.44,188.78]
[null,null,null,null,null,null,null,null,null,null,"Nov",167.43,251.76,167.54,184.79]
[null,null,null,null,null,null,null,null,null,null,"Dec",161.91999999999999,227.03,163.11000000000001,179.17]
[null,null,null,null,null,null,null,null,null,null,"Annual",{"$f":"AVERAGE(L22:L33)","v":169.38250000000002},{"$f":"MAX(M22:M33)","v":306.89},{"$f":"AVERAGE(N22:N33)","v":169.65833333333333},{"$f":"MAX(O22:O33)","v":195.5}]
[]
[null,null,null,null,null,null,null,null,null,{"$f":"+A6","v":2021},"mg/Nm3","Monthly 1/2 hourly mean","Monthly 1/2 hourly maximum","Monthly daily mean","Monthly daily maximum"]
[null,null,null,null,null,null,null,null,null,"A3","Jan"]
[null,null,null,null,null,null,null,null,null,null,"Feb"]
[null,null,null,null,null,null,null,null,null,null,"Mar"]
[null,null,null,null,null,null,null,null,null,null,"Apr"]
[null,null,null,null,null,null,null,null,null,null,"May"]
[null,null,null,null,null,null,null,null,null,null,"Jun"]
[null,null,null,null,null,null,null,null,null,null,"Jul"]
[null,null,null,null,null,null,null,null,null,null,"Aug"]
[null,null,null,null,null,null,null,null,null,null,"Sep"]
[null,null,null,null,null,null,null,null,null,null,"Oct"]
[null,null,null,null,null,null,null,null,null,null,"Nov"]
["Comments :",null,null,null,null,null,null,null,null,null,"Dec"]
[null,null,null,null,null,null,null,null,null,null,"Annual",{"$f":"AVERAGE(L37:L48)","v":{"$error":"#DIV/0!"}},{"$f":"MAX(M37:M48)","v":0},{"$f":"AVERAGE(N37:N48)","v":{"$error":"#DIV/0!"}},{"$f":"MAX(O37:O48)","v":0}]
[]
[null,null,null,null,null,null,null,null,null,{"$f":"+A6","v":2021},"mg/Nm3","Monthly 1/2 hourly mean","Monthly 1/2 hourly maximum","Monthly daily mean","Monthly daily maximum"]
[null,null,null,null,null,null,null,null,null,"A4","Jan"]
[null,null,null,null,null,null,null,null,null,null,"Feb"]
[null,null,null,null,null,null,null,null,null,null,"Mar"]
[null,null,null,null,null,null,null,null,null,null,"Apr"]
[null,null,null,null,null,null,null,null,null,null,"May"]
[null,null,null,null,null,null,null,null,null,null,"Jun"]
[null,null,null,null,null,null,null,null,null,null,"Jul"]
[null,null,null,null,null,null,null,null,null,null,"Aug"]
[null,null,null,null,null,null,null,null,null,null,"Sep"]
[null,null,null,null,null,null,null,null,null,null,"Oct"]
[null,null,null,null,null,null,null,null,null,null,"Nov"]
[null,null,null,null,null,null,null,null,null,null,"Dec"]
[null,null,null,null,null,null,null,null,null,null,"Annual",{"$f":"AVERAGE(L52:L63)","v":{"$error":"#DIV/0!"}},{"$f":"MAX(M52:M63)","v":0},{"$f":"AVERAGE(N52:N63)","v":{"$error":"#DIV/0!"}},{"$f":"MAX(O52:O63)","v":0}]
[]
[null,null,null,null,null,null,null,null,null,{"$f":"+A6","v":2021},"mg/Nm3","Monthly 1/2 hourly mean","Monthly 1/2 hourly maximum","Monthly daily mean","Monthly daily maximum"]
[null,null,null,null,null,null,null,null,null,"A5","Jan"]
[null,null,null,null,null,null,null,null,null,null,"Feb"]
[null,null,null,null,null,null,null,null,null,null,"Mar"]
[null,null,null,null,null,null,null,null,null,null,"Apr"]
[null,null,null,null,null,null,null,null,null,null,"May"]
[null,null,null,null,null,null,null,null,null,null,"Jun"]
[null,null,null,null,null,null,null,null,null,null,"Jul"]
[null,null,null,null,null,null,null,null,null,null,"Aug"]
[null,null,null,null,null,null,null,null,null,null,"Sep"]
[null,null,null,null,null,null,null,null,null,null,"Oct"]
[null,null,null,null,null,null,null,null,null,null,"Nov"]
[null,null,null,null,null,null,null,null,null,null,"Dec"]
[null,null,null,null,null,null,null,null,null,null,"Annual",{"$f":"AVERAGE(L67:L78)","v":{"$error":"#DIV/0!"}},{"$f":"MAX(M67:M78)","v":0},{"$f":"AVERAGE(N67:N78)","v":{"$error":"#DIV/0!"}},{"$f":"MAX(O67:O78)","v":0}]

{"sheet":"TOC","index":17,"n_rows":79,"n_cols":17,"rows_kept":79,"cut":false,"hidden":false,"merged":[[3,16,7,18],[9,16,11,18],[12,16,15,18],[66,9,78,9],[4,1,4,3],[4,4,4,6],[4,9,4,14],[6,9,18,9],[21,9,33,9],[36,9,48,9],[47,0,47,6],[48,0,51,6],[51,9,63,9]]}
[{"$f":"+'Cover Page'!$B$29","v":"Annual Performance Report 2021"},null,null,null,{"$f":"+'Cover Page'!$B$33","v":"Tyseley Energy from Waste Plant"}]
[]
["Monitoring of Total organic carbon emissions",null,null,"Whole Installation",null,null,null,null,null,{"$f":"+A3","v":"Monitoring of Total organic carbon emissions"},null,null,null,"Per Combustion Line",null,null,"Notes:"]
[null,null,null,null,null,null,null,null,null,null,null,null,null,null,null,null,"User to add logic to complete Whole installation, Table A5:G18. From the data in Per Combustion Line, Table J6:O79, subject to No. of lines installed"]
["mg/Nm3","1/2 Hourly Reference Periods",null,null,"Daily Reference Periods"]
[{"$f":"+'Cover Page'!C39","v":2021},"1/2 hourly TOC ELV","Monthly 1/2 hourly mean","Highest 1/2 hourly maximum","Daily TOC ELV","Monthly daily mean","Highest daily maximum",null,null,{"$f":"+A6","v":2021},"mg/Nm3","Monthly 1/2 hourly mean","Monthly 1/2 hourly maximum","Monthly daily mean","Monthly daily maximum"]
["Jan",20,{"$f":"AVERAGE(L7,L22)","v":1.27},{"$f":"MAX(M7,M22)","v":12.71},10,{"$f":"AVERAGE(N7,N22)","v":1.26},{"$f":"MAX(O7,O22)","v":1.81},null,null,"A1","Jan",1.21,5.58,1.21,1.43]
["Feb",20,{"$f":"AVERAGE(L8,L23)","v":1.2749999999999999},{"$f":"MAX(M8,M23)","v":7.64},10,{"$f":"AVERAGE(N8,N23)","v":1.29},{"$f":"MAX(O8,O23)","v":2.35},null,null,null,"Feb",1.1599999999999999,2.33,1.1499999999999999,1.29]
["Mar",20,1.24,14.05,10,1.25,1.69,null,null,null,"Mar",1.1299999999999999,2.76,1.1299999999999999,1.26,null,"Whole Installation table A5:G18:"]
["Apr",20,1.2450000000000001,8.0399999999999991,10,1.2450000000000001,1.58,null,null,null,"Apr",1.1499999999999999,2.31,1.1499999999999999,1.25,null,"Mean: for 1/2 hourly and daily periods calculate mean of values across all operational combustion lines for the month"]
["May",20,1.3,12.65,10,0.81,2.02,null,null,null,"May",1.0900000000000001,1.68,0.09,1.24]
["Jun",20,1.345,6.37,10,1.355,{"$f":"MAX(O12,O27)","v":1.88},null,null,null,"Jun",1.22,3.59,1.21,1.58]
["Jul",20,1.01,9.26,10,1,2.54,null,null,null,"Jul",0.91,2.2799999999999998,0.89,1.22,null,"Maximum: for 1/2 hourly and daily periods use the highest value across all operational combustion lines for the month"]
["Aug",20,0.86499999999999999,5.72,10,0.86499999999999999,1.1299999999999999,null,null,null,"Aug",1.03,2.13,1.03,1.1299999999999999]
["Sep",20,0.43499999999999994,2.23,10,0.43999999999999995,0.95,null,null,null,"Sep",0.18,1.0900000000000001,0.19,0.42]
["Oct",20,0.42,{"$f":"MAX(M16,M31)","v":3.84},10,0.42,1.1299999999999999,null,null,null,"Oct",0.25,1.17,0.25,0.35]
["Nov",20,0.22999999999999998,1.38,10,0.23499999999999999,0.73,null,null,null,"Nov",0.24,0.83,0.24,0.33]
["Dec",20,0.29000000000000004,6.36,10,0.29000000000000004,0.82,null,null,null,"Dec",0.14000000000000001,1.6,0.14000000000000001,0.22]
[null,null,null,null,null,null,null,null,null,null,"Annual",{"$f":"AVERAGE(L7:L18)","v":0.8091666666666667},{"$f":"MAX(M7:M18)","v":5.58},{"$f":"AVERAGE(N7:N18)","v":0.72333333333333327},{"$f":"MAX(O7:O18)","v":1.58}]
[]
[null,null,null,null,null,null,null,null,null,{"$f":"+A6","v":2021},"mg/Nm3","Monthly 1/2 hourly mean","Monthly 1/2 hourly maximum","Monthly daily mean","Monthly daily maximum"]
[null,null,null,null,null,null,null,null,null,"A2","Jan",1.33,12.71,1.31,1.81]
[null,null,null,null,null,null,null,null,null,null,"Feb",1.39,7.64,1.43,2.35]
[null,null,null,null,null,null,null,null,null,null,"Mar",1.35,14.05,1.37,1.69]
[null,null,null,null,null,null,null,null,null,null,"Apr",1.34,8.0399999999999991,1.34,1.58]
[null,null,null,null,null,null,null,null,null,null,"May",1.51,12.65,1.53,2.02]
[null,null,null,null,null,null,null,null,null,null,"Jun",1.47,6.37,1.5,1.88]
[null,null,null,null,null,null,null,null,null,null,"Jul",1.1100000000000001,9.26,1.1100000000000001,2.54]
[null,null,null,null,null,null,null,null,null,null,"Aug",0.7,5.72,0.7,1.1100000000000001]
[null,null,null,null,null,null,null,null,null,null,"Sep",0.69,2.23,0.69,0.95]
[null,null,null,null,null,null,null,null,null,null,"Oct",0.59,3.84,0.59,1.1299999999999999]
[null,null,null,null,null,null,null,null,null,null,"Nov",0.22,1.38,0.23,0.73]
[null,null,null,null,null,null,null,null,null,null,"Dec",0.44,6.36,0.44,0.82]
[null,null,null,null,null,null,null,null,null,null,"Annual",{"$f":"AVERAGE(L22:L33)","v":1.0116666666666665},{"$f":"MAX(M22:M33)","v":14.05},{"$f":"AVERAGE(N22:N33)","v":1.0199999999999998},{"$f":"MAX(O22:O33)","v":2.54}]
[]
[null,null,null,null,null,null,null,null,null,{"$f":"+A6","v":2021},"mg/Nm3","Monthly 1/2 hourly mean","Monthly 1/2 hourly maximum","Monthly daily mean","Monthly daily maximum"]
[null,null,null,null,null,null,null,null,null,"A3","Jan"]
[null,null,null,null,null,null,null,null,null,null,"Feb"]
[null,null,null,null,null,null,null,null,null,null,"Mar"]
[null,null,null,null,null,null,null,null,null,null,"Apr"]
[null,null,null,null,null,null,null,null,null,null,"May"]
[null,null,null,null,null,null,null,null,null,null,"Jun"]
[null,null,null,null,null,null,null,null,null,null,"Jul"]
[null,null,null,null,null,null,null,null,null,null,"Aug"]
[null,null,null,null,null,null,null,null,null,null,"Sep"]
[null,null,null,null,null,null,null,null,null,null,"Oct"]
[null,null,null,null,null,null,null,null,null,null,"Nov"]
["Comments :",null,null,null,null,null,null,null,null,null,"Dec"]
[null,null,null,null,null,null,null,null,null,null,"Annual",{"$f":"AVERAGE(L37:L48)","v":{"$error":"#DIV/0!"}},{"$f":"MAX(M37:M48)","v":0},{"$f":"AVERAGE(N37:N48)","v":{"$error":"#DIV/0!"}},{"$f":"MAX(O37:O48)","v":0}]
[]
[null,null,null,null,null,null,null,null,null,{"$f":"+A6","v":2021},"mg/Nm3","Monthly 1/2 hourly mean","Monthly 1/2 hourly maximum","Monthly daily mean","Monthly daily maximum"]
[null,null,null,null,null,null,null,null,null,"A4","Jan"]
[null,null,null,null,null,null,null,null,null,null,"Feb"]
[null,null,null,null,null,null,null,null,null,null,"Mar"]
[null,null,null,null,null,null,null,null,null,null,"Apr"]
[null,null,null,null,null,null,null,null,null,null,"May"]
[null,null,null,null,null,null,null,null,null,null,"Jun"]
[null,null,null,null,null,null,null,null,null,null,"Jul"]
[null,null,null,null,null,null,null,null,null,null,"Aug"]
[null,null,null,null,null,null,null,null,null,null,"Sep"]
[null,null,null,null,null,null,null,null,null,null,"Oct"]
[null,null,null,null,null,null,null,null,null,null,"Nov"]
[null,null,null,null,null,null,null,null,null,null,"Dec"]
[null,null,null,null,null,null,null,null,null,null,"Annual",{"$f":"AVERAGE(L52:L63)","v":{"$error":"#DIV/0!"}},{"$f":"MAX(M52:M63)","v":0},{"$f":"AVERAGE(N52:N63)","v":{"$error":"#DIV/0!"}},{"$f":"MAX(O52:O63)","v":0}]
[]
[null,null,null,null,null,null,null,null,null,{"$f":"+A6","v":2021},"mg/Nm3","Monthly 1/2 hourly mean","Monthly 1/2 hourly maximum","Monthly daily mean","Monthly daily maximum"]
[null,null,null,null,null,null,null,null,null,"A5","Jan"]
[null,null,null,null,null,null,null,null,null,null,"Feb"]
[null,null,null,null,null,null,null,null,null,null,"Mar"]
[null,null,null,null,null,null,null,null,null,null,"Apr"]
[null,null,null,null,null,null,null,null,null,null,"May"]
[null,null,null,null,null,null,null,null,null,null,"Jun"]
[null,null,null,null,null,null,null,null,null,null,"Jul"]
[null,null,null,null,null,null,null,null,null,null,"Aug"]
[null,null,null,null,null,null,null,null,null,null,"Sep"]
[null,null,null,null,null,null,null,null,null,null,"Oct"]
[null,null,null,null,null,null,null,null,null,null,"Nov"]
[null,null,null,null,null,null,null,null,null,null,"Dec"]
[null,null,null,null,null,null,null,null,null,null,"Annual",{"$f":"AVERAGE(L67:L78)","v":{"$error":"#DIV/0!"}},{"$f":"MAX(M67:M78)","v":0},{"$f":"AVERAGE(N67:N78)","v":{"$error":"#DIV/0!"}},{"$f":"MAX(O67:O78)","v":0}]

{"sheet":"Particulates","index":18,"n_rows":79,"n_cols":17,"rows_kept":79,"cut":false,"hidden":false,"merged":[[3,16,7,18],[9,16,11,18],[12,16,15,18],[66,9,78,9],[4,1,4,3],[4,4,4,6],[4,9,4,14],[6,9,18,9],[21,9,33,9],[36,9,48,9],[47,0,47,6],[48,0,51,6],[51,9,63,9]]}
[{"$f":"+'Cover Page'!$B$29","v":"Annual Performance Report 2021"},null,null,null,{"$f":"+'Cover Page'!$B$33","v":"Tyseley Energy from Waste Plant"}]
[]
["Monitoring of Particulate matter emissions",null,null,"Whole Installation",null,null,null,null,null,{"$f":"+A3","v":"Monitoring of Particulate matter emissions"},null,null,null,"Per Combustion Line",null,null,"Notes:"]
[null,null,null,null,null,null,null,null,null,null,null,null,null,null,null,null,"User to add logic to complete Whole installation, Table A5:G18. From the data in Per Combustion Line, Table J6:O79, subject to No. of lines installed"]
["mg/Nm3","1/2 Hourly Reference Periods",null,null,"Daily Reference Periods"]
[{"$f":"+'Cover Page'!C39","v":2021},"1/2 hourly PM ELV","Monthly 1/2 hourly mean","Highest 1/2 hourly maximum","Daily PM ELV","Monthly daily mean","Highest daily maximum",null,null,{"$f":"+A6","v":2021},"mg/Nm3","Monthly 1/2 hourly mean","Monthly 1/2 hourly maximum","Monthly daily mean","Monthly daily maximum"]
["Jan",30,{"$f":"AVERAGE(L7,L22)","v":1.1200000000000001},{"$f":"MAX(M7,M22)","v":14.72},10,{"$f":"AVERAGE(N7,N22)","v":1.05},{"$f":"MAX(O7,O22)","v":3.49},null,null,"A1","Jan",1.1200000000000001,1.81,1.1200000000000001,1.61]
["Feb",30,{"$f":"AVERAGE(L8,L23)","v":0.57499999999999996},{"$f":"MAX(M8,M23)","v":2.33},10,{"$f":"AVERAGE(N8,N23)","v":0.58499999999999996},{"$f":"MAX(O8,O23)","v":1.69},null,null,null,"Feb",0.85,2.33,0.87,1.69]
["Mar",30,0.38500000000000001,5.99,10,0.39,0.73,null,null,null,"Mar",0.5,3.13,0.5,0.73,null,"Whole Installation table A5:G18:"]
["Apr",30,{"$f":"AVERAGE(L10,L25)","v":0.30499999999999999},2.56,10,0.30499999999999999,0.59,null,null,null,"Apr",0.4,0.89,0.4,0.59,null,"Mean: for 1/2 hourly and daily periods calculate mean of values across all operational combustion lines for the month"]
["May",30,0.64,4.33,10,0.64,2.71,null,null,null,"May",1.05,4.33,1.05,2.71]
["Jun",30,1.3599999999999999,5.57,10,1.32,3.39,null,null,null,"Jun",2.5099999999999998,5.57,2.44,3.39]
["Jul",30,0.26,2.77,10,0.26,0.81,null,null,null,"Jul",0.18,1.0900000000000001,0.18,0.31,null,"Maximum: for 1/2 hourly and daily periods use the highest value across all operational combustion lines for the month"]
["Aug",30,0.45999999999999996,2.75,10,0.47,1.31,null,null,null,"Aug",0.69,2.75,0.71,1.31]
["Sep",30,0.89,6.46,10,0.88500000000000001,2.64,null,null,null,"Sep",1.62,6.46,1.61,2.64]
["Oct",30,1.0649999999999999,7.72,10,1.0649999999999999,{"$f":"MAX(O16,O31)","v":3.24},null,null,null,"Oct",1.93,7.72,1.93,3.24]
["Nov",30,0.81499999999999995,5.29,10,0.81499999999999995,2.63,null,null,null,"Nov",1.41,5.29,1.41,2.63]
["Dec",30,0.66999999999999993,10.95,10,0.65999999999999992,1.33,null,null,null,"Dec",0.85,10.95,0.82,1.33]
[null,null,null,null,null,null,null,null,null,null,"Annual",{"$f":"AVERAGE(L7:L18)","v":1.0924999999999998},{"$f":"MAX(M7:M18)","v":10.95},{"$f":"AVERAGE(N7:N18)","v":1.0866666666666667},{"$f":"MAX(O7:O18)","v":3.39}]
[]
[null,null,null,null,null,null,null,null,null,{"$f":"+A6","v":2021},"mg/Nm3","Monthly 1/2 hourly mean","Monthly 1/2 hourly maximum","Monthly daily mean","Monthly daily maximum"]
[null,null,null,null,null,null,null,null,null,"A2","Jan",1.1200000000000001,14.72,0.98,3.49]
[null,null,null,null,null,null,null,null,null,null,"Feb",0.3,1.38,0.3,0.59]
[null,null,null,null,null,null,null,null,null,null,"Mar",0.27,5.99,0.28000000000000003,0.56000000000000005]
[null,null,null,null,null,null,null,null,null,null,"Apr",0.21,2.56,0.21,0.44]
[null,null,null,null,null,null,null,null,null,null,"May",0.23,1.5,0.23,0.42]
[null,null,null,null,null,null,null,null,null,null,"Jun",0.21,1.97,0.2,0.31]
[null,null,null,null,null,null,null,null,null,null,"Jul",0.34,2.77,0.34,0.81]
[null,null,null,null,null,null,null,null,null,null,"Aug",0.23,2.0699999999999998,0.23,0.36]
[null,null,null,null,null,null,null,null,null,null,"Sep",0.16,1.69,0.16,0.33]
[null,null,null,null,null,null,null,null,null,null,"Oct",0.2,0.99,0.2,0.35]
[null,null,null,null,null,null,null,null,null,null,"Nov",0.22,1.45,0.22,0.37]
[null,null,null,null,null,null,null,null,null,null,"Dec",0.49,2.73,0.5,1.1399999999999999]
[null,null,null,null,null,null,null,null,null,null,"Annual",{"$f":"AVERAGE(L22:L33)","v":0.33166666666666672},{"$f":"MAX(M22:M33)","v":14.72},{"$f":"AVERAGE(N22:N33)","v":0.32083333333333336},{"$f":"MAX(O22:O33)","v":3.49}]
[]
[null,null,null,null,null,null,null,null,null,{"$f":"+A6","v":2021},"mg/Nm3","Monthly 1/2 hourly mean","Monthly 1/2 hourly maximum","Monthly daily mean","Monthly daily maximum"]
[null,null,null,null,null,null,null,null,null,"A3","Jan"]
[null,null,null,null,null,null,null,null,null,null,"Feb"]
[null,null,null,null,null,null,null,null,null,null,"Mar"]
[null,null,null,null,null,null,null,null,null,null,"Apr"]
[null,null,null,null,null,null,null,null,null,null,"May"]
[null,null,null,null,null,null,null,null,null,null,"Jun"]
[null,null,null,null,null,null,null,null,null,null,"Jul"]
[null,null,null,null,null,null,null,null,null,null,"Aug"]
[null,null,null,null,null,null,null,null,null,null,"Sep"]
[null,null,null,null,null,null,null,null,null,null,"Oct"]
[null,null,null,null,null,null,null,null,null,null,"Nov"]
["Comments :",null,null,null,null,null,null,null,null,null,"Dec"]
[null,null,null,null,null,null,null,null,null,null,"Annual",{"$f":"AVERAGE(L37:L48)","v":{"$error":"#DIV/0!"}},{"$f":"MAX(M37:M48)","v":0},{"$f":"AVERAGE(N37:N48)","v":{"$error":"#DIV/0!"}},{"$f":"MAX(O37:O48)","v":0}]
[]
[null,null,null,null,null,null,null,null,null,{"$f":"+A6","v":2021},"mg/Nm3","Monthly 1/2 hourly mean","Monthly 1/2 hourly maximum","Monthly daily mean","Monthly daily maximum"]
[null,null,null,null,null,null,null,null,null,"A4","Jan"]
[null,null,null,null,null,null,null,null,null,null,"Feb"]
[null,null,null,null,null,null,null,null,null,null,"Mar"]
[null,null,null,null,null,null,null,null,null,null,"Apr"]
[null,null,null,null,null,null,null,null,null,null,"May"]
[null,null,null,null,null,null,null,null,null,null,"Jun"]
[null,null,null,null,null,null,null,null,null,null,"Jul"]
[null,null,null,null,null,null,null,null,null,null,"Aug"]
[null,null,null,null,null,null,null,null,null,null,"Sep"]
[null,null,null,null,null,null,null,null,null,null,"Oct"]
[null,null,null,null,null,null,null,null,null,null,"Nov"]
[null,null,null,null,null,null,null,null,null,null,"Dec"]
[null,null,null,null,null,null,null,null,null,null,"Annual",{"$f":"AVERAGE(L52:L63)","v":{"$error":"#DIV/0!"}},{"$f":"MAX(M52:M63)","v":0},{"$f":"AVERAGE(N52:N63)","v":{"$error":"#DIV/0!"}},{"$f":"MAX(O52:O63)","v":0}]
[]
[null,null,null,null,null,null,null,null,null,{"$f":"+A6","v":2021},"mg/Nm3","Monthly 1/2 hourly mean","Monthly 1/2 hourly maximum","Monthly daily mean","Monthly daily maximum"]
[null,null,null,null,null,null,null,null,null,"A5","Jan"]
[null,null,null,null,null,null,null,null,null,null,"Feb"]
[null,null,null,null,null,null,null,null,null,null,"Mar"]
[null,null,null,null,null,null,null,null,null,null,"Apr"]
[null,null,null,null,null,null,null,null,null,null,"May"]
[null,null,null,null,null,null,null,null,null,null,"Jun"]
[null,null,null,null,null,null,null,null,null,null,"Jul"]
[null,null,null,null,null,null,null,null,null,null,"Aug"]
[null,null,null,null,null,null,null,null,null,null,"Sep"]
[null,null,null,null,null,null,null,null,null,null,"Oct"]
[null,null,null,null,null,null,null,null,null,null,"Nov"]
[null,null,null,null,null,null,null,null,null,null,"Dec"]
[null,null,null,null,null,null,null,null,null,null,"Annual",{"$f":"AVERAGE(L67:L78)","v":{"$error":"#DIV/0!"}},{"$f":"MAX(M67:M78)","v":0},{"$f":"AVERAGE(N67:N78)","v":{"$error":"#DIV/0!"}},{"$f":"MAX(O67:O78)","v":0}]

{"sheet":"CO 95% 10 min","index":19,"n_rows":79,"n_cols":19,"rows_kept":79,"cut":false,"hidden":false,"merged":[[3,18,7,20],[9,18,11,20],[12,18,15,20],[66,10,78,10],[4,1,4,4],[4,5,4,7],[4,10,4,16],[6,10,18,10],[21,10,33,10],[36,10,48,10],[47,0,47,7],[48,0,51,7],[51,10,63,10]]}
[{"$f":"+'Cover Page'!$B$29","v":"Annual Performance Report 2021"},null,null,null,{"$f":"+'Cover Page'!$B$33","v":"Tyseley Energy from Waste Plant"}]
[]
["Monitoring of Carbon Monoxide (10-minute avg)",null,null,null,"Whole Installation",null,null,null,null,{"$f":"+A3","v":"Monitoring of Carbon Monoxide (10-minute avg)"},null,null,null,null,"Per Combustion Line",null,"Notes:",null,"Notes:"]
[null,null,null,null,null,null,null,null,null,null,null,null,null,null,null,null,null,null,"User to add logic to complete Whole installation, Table A5:H18. From the data in Per Combustion Line, Table K6:Q79, subject to No. of lines installed"]
["mg/Nm3","10-minute Reference Periods",null,null,null,"Daily Reference Periods"]
[{"$f":"+'Cover Page'!C39","v":2021},"95%ile 10-min avg CO ELV","95%ile 10-min avg maximum","Monthly CO 10-min avg mean","10-min avg maximum","Daily CO ELV","Monthly daily mean","Highest daily maximum",null,null,{"$f":"+A6","v":2021},"mg/Nm3","95%ile 10-min avg maximum","Monthly CO 10-min avg mean","10-min avg maximum","Monthly daily mean","Monthly daily maximum"]
["Jan",150,{"$f":"MAX(M7,M22)","v":17.5},{"$f":"AVERAGE(N7,N22)","v":13.164999999999999},{"$f":"MAX(O7,O22)","v":1533.16},50,{"$f":"AVERAGE(P7,P22)","v":12.855},{"$f":"MAX(Q7,Q22)","v":26.49},null,null,"A1","Jan",17.5,17.46,252.63,17.46,26.49]
["Feb",{"$f":"+B7","v":150},{"$f":"MAX(M8,M23)","v":13.5},{"$f":"AVERAGE(N8,N23)","v":11.815},{"$f":"MAX(O8,O23)","v":502.73},{"$f":"+F7","v":50},{"$f":"AVERAGE(P8,P23)","v":11.98},{"$f":"MAX(Q8,Q23)","v":30},null,null,null,"Feb",10.1,10.09,289.31,10.1,20.329999999999998]
["Mar",{"$f":"+B8","v":150},12.7,11.83,1134.9100000000001,{"$f":"+F8","v":50},12.03,27.26,null,null,null,"Mar",11,10.96,808.1,10.94,27.26,null,"Whole Installation table A5:H18:"]
["Apr",150,11.4,10.309999999999999,411.07,50,10.309999999999999,22.99,null,null,null,"Apr",11.4,11.36,411.07,11.36,20.39,null,"Mean: for 10-min and daily periods use average of all operational combustion lines."]
["May",150,14.4,11.565,714.7,50,11.565000000000001,25.96,null,null,null,"May",8.6999999999999993,8.68,655.38,8.66,17.87]
["Jun",150,13.7,11.27,341,50,11.234999999999999,18.25,null,null,null,"Jun",8.9,8.86,155.91999999999999,8.6300000000000008,12.32]
["Jul",150,9.6999999999999993,9.4200000000000017,845.62,50,9.4250000000000007,{"$f":"MAX(Q13,Q28)","v":24.73},null,null,null,"Jul",9.1,9.1300000000000008,226.41,9.14,18.77,null,"Maximum: for 10-min and daily periods use the highest of all operational combustion lines in any month."]
["Aug",150,12.5,10.06,340.02,50,10.07,25.12,null,null,null,"Aug",7.7,7.66,265.20999999999998,7.69,16.75]
["Sep",150,14.8,12.69,786.98,50,12.76,26.87,null,null,null,"Sep",10.5,10.53,301.77999999999997,10.67,26.87]
["Oct",150,15.1,13.155000000000001,416.4,50,13.185,32.93,null,null,null,"Oct",11.3,11.26,409.09,11.32,23.21]
["Nov",150,11.3,10.1,1524.76,50,10.135,20.64,null,null,null,"Nov",8.9,8.94,1524.76,8.9499999999999993,20.64]
["Dec",150,12.7,11.925000000000001,489.04,50,11.98,27.01,null,null,null,"Dec",11.2,11.21,489.04,11.33,27.01]
[null,null,null,null,null,null,null,null,null,null,null,"Annual",{"$f":"AVERAGE(M7:M18)","v":10.525},{"$f":"AVERAGE(N7:N18)","v":10.511666666666665},{"$f":"MAX(O7:O18)","v":1524.76},{"$f":"AVERAGE(P7:P18)","v":10.520833333333334},{"$f":"MAX(Q7:Q18)","v":27.26}]
[]
[null,null,null,null,null,null,null,null,null,null,{"$f":"+A6","v":2021},"mg/Nm3","95%ile 10-min avg maximum","Monthly CO 10-min avg mean","10-min avg maximum","Monthly daily mean","Monthly daily maximum"]
[null,null,null,null,null,null,null,null,null,null,"A2","Jan",8.9,8.8699999999999992,1533.16,8.25,19.579999999999998]
[null,null,null,null,null,null,null,null,null,null,null,"Feb",13.5,13.54,502.73,13.86,30]
[null,null,null,null,null,null,null,null,null,null,null,"Mar",12.7,12.7,1134.9100000000001,13.12,26.58]
[null,null,null,null,null,null,null,null,null,null,null,"Apr",9.3000000000000007,9.26,325.07,9.26,22.99]
[null,null,null,null,null,null,null,null,null,null,null,"May",14.4,14.45,714.7,14.47,25.96]
[null,null,null,null,null,null,null,null,null,null,null,"Jun",13.7,13.68,341,13.84,18.25]
[null,null,null,null,null,null,null,null,null,null,null,"Jul",9.6999999999999993,9.7100000000000009,845.62,9.7100000000000009,24.73]
[null,null,null,null,null,null,null,null,null,null,null,"Aug",12.5,12.46,340.02,12.45,25.12]
[null,null,null,null,null,null,null,null,null,null,null,"Sep",14.8,14.85,786.98,14.85,26.27]
[null,null,null,null,null,null,null,null,null,null,null,"Oct",15.1,15.05,416.4,15.05,32.93]
[null,null,null,null,null,null,null,null,null,null,null,"Nov",11.3,11.26,201.47,11.32,17.21]
[null,null,null,null,null,null,null,null,null,null,null,"Dec",12.7,12.64,127.57,12.63,22.59]
[null,null,null,null,null,null,null,null,null,null,null,"Annual",{"$f":"AVERAGE(M22:M33)","v":12.383333333333331},{"$f":"AVERAGE(N22:N33)","v":12.372500000000002},{"$f":"MAX(O22:O33)","v":1533.16},{"$f":"AVERAGE(P22:P33)","v":12.400833333333331},{"$f":"MAX(Q22:Q33)","v":32.93}]
[]
[null,null,null,null,null,null,null,null,null,null,{"$f":"+A6","v":2021},"mg/Nm3","95%ile 10-min avg maximum","Monthly CO 10-min avg mean","10-min avg maximum","Monthly daily mean","Monthly daily maximum"]
[null,null,null,null,null,null,null,null,null,null,"A3","Jan"]
[null,null,null,null,null,null,null,null,null,null,null,"Feb"]
[null,null,null,null,null,null,null,null,null,null,null,"Mar"]
[null,null,null,null,null,null,null,null,null,null,null,"Apr"]
[null,null,null,null,null,null,null,null,null,null,null,"May"]
[null,null,null,null,null,null,null,null,null,null,null,"Jun"]
[null,null,null,null,null,null,null,null,null,null,null,"Jul"]
[null,null,null,null,null,null,null,null,null,null,null,"Aug"]
[null,null,null,null,null,null,null,null,null,null,null,"Sep"]
[null,null,null,null,null,null,null,null,null,null,null,"Oct"]
[null,null,null,null,null,null,null,null,null,null,null,"Nov"]
["Comments :",null,null,null,null,null,null,null,null,null,null,"Dec"]
["Environment Agency explanatory note: The 10-minute average ELV is based on the “95th percentile”. In this case this means that 95% of the 10 minute averages in the relevant 24-hour period (i.e. 137) must be below 150 mg/Nm3, and 5% (i.e. 7) are allowed to be any value above 150 mg/Nm3. Whilst we expect operators to minimise CO emissions at all times, it is perfectly acceptable for the value of the maximum 10-minute average to be above 150 mg/Nm3, provided the 95th percentile ELV has been met for that period. ",null,null,null,null,null,null,null,null,null,null,"Annual",{"$f":"AVERAGE(M37:M48)","v":{"$error":"#DIV/0!"}},null,{"$f":"MAX(O37:O48)","v":0},{"$f":"AVERAGE(P37:P48)","v":{"$error":"#DIV/0!"}},{"$f":"MAX(Q37:Q48)","v":0}]
[]
[null,null,null,null,null,null,null,null,null,null,{"$f":"+A6","v":2021},"mg/Nm3","95%ile 10-min avg maximum","Monthly CO 10-min avg mean","10-min avg maximum","Monthly daily mean","Monthly daily maximum"]
[null,null,null,null,null,null,null,null,null,null,"A4","Jan"]
[null,null,null,null,null,null,null,null,null,null,null,"Feb"]
[null,null,null,null,null,null,null,null,null,null,null,"Mar"]
[null,null,null,null,null,null,null,null,null,null,null,"Apr"]
[null,null,null,null,null,null,null,null,null,null,null,"May"]
[null,null,null,null,null,null,null,null,null,null,null,"Jun"]
[null,null,null,null,null,null,null,null,null,null,null,"Jul"]
[null,null,null,null,null,null,null,null,null,null,null,"Aug"]
[null,null,null,null,null,null,null,null,null,null,null,"Sep"]
[null,null,null,null,null,null,null,null,null,null,null,"Oct"]
[null,null,null,null,null,null,null,null,null,null,null,"Nov"]
[null,null,null,null,null,null,null,null,null,null,null,"Dec"]
[null,null,null,null,null,null,null,null,null,null,null,"Annual",{"$f":"AVERAGE(M52:M63)","v":{"$error":"#DIV/0!"}},null,{"$f":"MAX(O52:O63)","v":0},{"$f":"AVERAGE(P52:P63)","v":{"$error":"#DIV/0!"}},{"$f":"MAX(Q52:Q63)","v":0}]
[]
[null,null,null,null,null,null,null,null,null,null,{"$f":"+A6","v":2021},"mg/Nm3","95%ile 10-min avg maximum","Monthly CO 10-min avg mean","10-min avg maximum","Monthly daily mean","Monthly daily maximum"]
[null,null,null,null,null,null,null,null,null,null,"A5","Jan"]
[null,null,null,null,null,null,null,null,null,null,null,"Feb"]
[null,null,null,null,null,null,null,null,null,null,null,"Mar"]
[null,null,null,null,null,null,null,null,null,null,null,"Apr"]
[null,null,null,null,null,null,null,null,null,null,null,"May"]
[null,null,null,null,null,null,null,null,null,null,null,"Jun"]
[null,null,null,null,null,null,null,null,null,null,null,"Jul"]
[null,null,null,null,null,null,null,null,null,null,null,"Aug"]
[null,null,null,null,null,null,null,null,null,null,null,"Sep"]
[null,null,null,null,null,null,null,null,null,null,null,"Oct"]
[null,null,null,null,null,null,null,null,null,null,null,"Nov"]
[null,null,null,null,null,null,null,null,null,null,null,"Dec"]
[null,null,null,null,null,null,null,null,null,null,null,"Annual",{"$f":"AVERAGE(M67:M78)","v":{"$error":"#DIV/0!"}},null,{"$f":"MAX(O67:O78)","v":0},{"$f":"AVERAGE(P67:P78)","v":{"$error":"#DIV/0!"}},{"$f":"MAX(Q67:Q78)","v":0}]